Workbook

Sheet INGRESO DE DATOS
O2: 24 years | P2: TRUE
O4: Descuento 24 años (por edad)
O5: age | P5: Discount (%) | Q5: Parameter | S5: Type | T5: Nuevo Negocio | V5: Región | W5: 2
O6: 24 | P6: 35 | Q6: =1-P6/100 -> 0.65 | T6: Renovación | W6: 3
O7: 25 | P7: 30 | Q7: =1-P7/100 -> 0.7 | W7: 4
O8: 26 | P8: 25 | Q8: 0.75 | W8: 5
O9: 27 | P9: 20 | Q9: 0.8 | W9: 6
O10: 28 | P10: 15 | Q10: 0.85 | W10: 8
O11: 29 | P11: 6 | Q11: 0.94 | W11: 9
O12: All ages | P12: 0 | Q12: 1 | W12: Venezuela
S13: Type selected | T13: 2 | V13: Selección | W13: 8
V14: Región | W14: =IF(W13=1,2,IF(W13=2,3,IF(W13=3,4,IF(W13=4,5,IF(W13=4,5,IF(W13=5,6,IF(W13=6,8,IF(W13=7,9,IF(W13=8,"VENEZUELA"))))))))) -> VENEZUELA
O19: Descuento de 24 años: | P19: =IF(P2,_xlfn.SWITCH(C42,O6,Q6,O7,Q7,O8,Q8,O9,Q9,O10,Q10,O11,Q11,Q12),Q12) -> 0.65
O24: Descuento por variante de coaseguro | P24: N/A
O30: Descuento si es nuevo negocio (ENTRADA MANUAL)
O32: New business discount
O33: Critical | P33: Exclusive | Q33: Privilege | R33: Advantage | S33: Secure | T33: Essential
A36: Nombre del Asegurado principal: | C36: John Doe
O37: Descuento combinado 24 años + Nuevo Negocio o Roneovaciones
A38: Número de adultos en la póliza: | C38: 1
A40: Número de hijos en la póliza: | C40: 0 | O40: New business discount
O41: Critical | P41: Exclusive | Q41: Privilege | R41: Advantage | S41: Secure | T41: Essential
A42: Edad del titular: | C42: 24 | O42: =1*$P$19 -> 0.65 | P42: =IF($T$13=1,IF($W$14="PERU2020", (1-O51)*$P$19,(1-P34)*$P$19),1*$P$19) -> 0.65 | Q42: =IF($T$13=1,IF($W$14="PERU2020", (1-O54)*$P$19,(1-Q34)*$P$19),1*$P$19) -> 0.65 | R42: =IF($T$13=1,IF($W$14="PERU2020", (1-O57)*$P$19,(1-R34)*$P$19),1*$P$19) -> 0.65 | S42: =IF($T$13=1,IF($W$14="PERU2020", (1-O60)*$P$19,(1-S34)*$P$19),1*$P$19) -> 0.65 | T42: =IF($T$13=1,IF($W$14="PERU2020", (1-O63)*$P$19,(1-T34)*$P$19),1*$P$19) -> 0.65
A44: Edad de cónyuge: | C44: 55
A47: Nombre de la Agencia : | C47: Agencia
O48: DISCOUNT PERU 2020
O50: EXCLUSIVE CARE
O51: 0.51
O53: PRIVILEGE CARE
O54: 0.51
O56: ADVANTAGE CARE
O57: 0.47
O59: SECURE CARE
O60: 0.54
O62: ESSENTIAL CARE
O63: 0.54

Sheet Privilege Care International
M1: RESUMEN DE BENEFICIOS | AA1: RESUMEN DE BENEFICIOS
G2: FALSE
F5: Cotización de Seguro Médico Internacional Bupa Privilege Care International Tarifas en US$ | Validas: 1 de enero de 2024 | J5: REGIÓN
J7: =IF('INGRESO DE DATOS'!W14="PERU2020","Perú",'INGRESO DE DATOS'!W14) -> VENEZUELA
F13: Nombre del asegurado principal | G13: =+'INGRESO DE DATOS'!$C$36 -> John Doe
F15: Broker/Agente | G15: =+'INGRESO DE DATOS'!$C$47 -> Agencia
F17: Número de Adultos en la Póliza | G17: =+'INGRESO DE DATOS'!$C$38 -> 1 | H17: Dependientes (menores de 24 años) | J17: =+'INGRESO DE DATOS'!$C$40 -> 0
H18: =IF('INGRESO DE DATOS'!$P$2=TRUE, "Cotización para dependiente de 24 años","") -> Cotización para dependiente de 24 años
F19: Edad del Titular | G19: =+'INGRESO DE DATOS'!$C$42 -> 24 | H19: Edad del Cónyuge | J19: =+'INGRESO DE DATOS'!$C$44 -> 55
H21: Fecha de Cotización: | J21: =NOW() -> 2023-12-27T16:02:06.490
F25: DEDUCIBLES | G25: PLAN 1 | H25: PLAN 2 | I25: PLAN 3 | J25: PLAN 4 | K25: PLAN 5
F26: Dentro del pais de residencia | G26: N/A | H26: N/A | I26: N/A | J26: N/A | K26: 20000
F27: Fuera del pais de residencia | G27: 2000 | H27: 5000 | I27: 10000 | J27: 20000 | K27: 20000
F30: TARIFAS ANUALES
F31: Prima de Titular | G31: =VLOOKUP($G$19,Tablas!$A$152:$H$175,4,TRUE) -> 2010.4 | H31: =VLOOKUP($G$19,Tablas!$A$152:$H$175,5,TRUE) -> 1433.85 | I31: =VLOOKUP($G$19,Tablas!$A$152:$H$175,6,TRUE) -> 1021.75 | J31: =VLOOKUP($G$19,Tablas!$A$152:$H$175,7,TRUE) -> 780.6 | K31: =VLOOKUP($G$19,Tablas!$A$152:$H$175,8,TRUE) -> 0
F32: Prima de Cónyuge | G32: =IF($G$17=1,0,(VLOOKUP($J$19,Tablas!$A$152:$H$175,4,TRUE))) -> 0 | H32: =IF($G$17=1,0,(VLOOKUP($J$19,Tablas!$A$152:$H$175,5,TRUE))) -> 0 | I32: =IF($G$17=1,0,(VLOOKUP($J$19,Tablas!$A$152:$H$175,6,TRUE))) -> 0 | J32: =IF($G$17=1,0,(VLOOKUP($J$19,Tablas!$A$152:$H$175,7,TRUE))) -> 0 | K32: =IF($G$17=1,0,(VLOOKUP($J$19,Tablas!$A$152:$H$175,8,TRUE))) -> 0
F33: Primas Hijos | G33: =IF($J$17=0,0,(VLOOKUP($J$17,Tablas!$A$176:$H$178,4,TRUE))) -> 0 | H33: =IF($J$17=0,0,(VLOOKUP($J$17,Tablas!$A$176:$H$178,5,TRUE))) -> 0 | I33: =IF($J$17=0,0,(VLOOKUP($J$17,Tablas!$A$176:$H$178,6,TRUE))) -> 0 | J33: =IF($J$17=0,0,(VLOOKUP($J$17,Tablas!$A$176:$H$178,7,TRUE))) -> 0 | K33: =IF($J$17=0,0,(VLOOKUP($J$17,Tablas!$A$176:$H$178,8,TRUE))) -> 0
F34: Rider: Complicaciónes de Maternidad | G34: =+IF($G$2=FALSE,0,Tablas!D$179) -> 0 | H34: =+IF($G$2=FALSE,0,Tablas!E$179) -> 0 | I34: =+IF($G$2=FALSE,0,Tablas!F$179) -> 0 | J34: =+IF($G$2=FALSE,0,Tablas!G$179) -> 0 | K34: =+IF($G$2=FALSE,0,Tablas!H$179) -> 0
F35: TOTAL PRIMA NETA | G35: =SUM(G31:G34) -> 2010.4 | H35: =SUM(H31:H34) -> 1433.85 | I35: =SUM(I31:I34) -> 1021.75 | J35: =SUM(J31:J34) -> 780.6 | K35: =SUM(K31:K34) -> 0
F36: Costo Administrativo Anual | G36: 75 | H36: 75 | I36: 75 | J36: 75 | K36: 75
F37: GRAN TOTAL | G37: =SUM(G35:G36) -> 2085.4 | H37: =SUM(H35:H36) -> 1508.85 | I37: =SUM(I35:I36) -> 1096.75 | J37: =SUM(J35:J36) -> 855.6 | K37: =SUM(K35:K36) -> 75
F40: TARIFAS SEMESTRALES
F41: Prima de Titular | G41: =VLOOKUP($G$19,Tablas!$A$187:$H$210,4,TRUE) -> 1065.512 | H41: =VLOOKUP($G$19,Tablas!$A$187:$H$210,5,TRUE) -> 759.9405 | I41: =VLOOKUP($G$19,Tablas!$A$187:$H$210,6,TRUE) -> 541.5275 | J41: =VLOOKUP($G$19,Tablas!$A$187:$H$210,7,TRUE) -> 413.718 | K41: =VLOOKUP($G$19,Tablas!$A$187:$H$210,8,TRUE) -> 0
F42: Prima de Cónyuge | G42: =IF($G$17=1,0,(VLOOKUP($J$19,Tablas!$A$187:$H$210,4,TRUE))) -> 0 | H42: =IF($G$17=1,0,(VLOOKUP($J$19,Tablas!$A$187:$H$210,5,TRUE))) -> 0 | I42: =IF($G$17=1,0,(VLOOKUP($J$19,Tablas!$A$187:$H$210,6,TRUE))) -> 0 | J42: =IF($G$17=1,0,(VLOOKUP($J$19,Tablas!$A$187:$H$210,7,TRUE))) -> 0 | K42: =IF($G$17=1,0,(VLOOKUP($J$19,Tablas!$A$187:$H$210,8,TRUE))) -> 0
F43: Primas Hijos | G43: =IF($J$17=0,0,(VLOOKUP($J$17,Tablas!$A$211:$H$213,4,TRUE))) -> 0 | H43: =IF($J$17=0,0,(VLOOKUP($J$17,Tablas!$A$211:$H$213,5,TRUE))) -> 0 | I43: =IF($J$17=0,0,(VLOOKUP($J$17,Tablas!$A$211:$H$213,6,TRUE))) -> 0 | J43: =IF($J$17=0,0,(VLOOKUP($J$17,Tablas!$A$211:$H$213,7,TRUE))) -> 0 | K43: =IF($J$17=0,0,(VLOOKUP($J$17,Tablas!$A$211:$H$213,8,TRUE))) -> 0
F44: Prima Rider Complic. Maternidad | G44: =+IF($G$2=FALSE,0,Tablas!D$214) -> 0 | H44: =+IF($G$2=FALSE,0,Tablas!E$214) -> 0 | I44: =+IF($G$2=FALSE,0,Tablas!F$214) -> 0 | J44: =+IF($G$2=FALSE,0,Tablas!G$214) -> 0 | K44: =+IF($G$2=FALSE,0,Tablas!H$214) -> 0
F45: TOTAL PRIMA NETA | G45: =SUM(G41:G44) -> 1065.512 | H45: =SUM(H41:H44) -> 759.9405 | I45: =SUM(I41:I44) -> 541.5275 | J45: =SUM(J41:J44) -> 413.718 | K45: =SUM(K41:K44) -> 0
F46: Costo Administrativo Anual | G46: 75 | H46: 75 | I46: 75 | J46: 75 | K46: 75
F47: TOTAL (1ra Cuota) : | G47: =SUM(G45:G46) -> 1140.512 | H47: =SUM(H45:H46) -> 834.9405 | I47: =SUM(I45:I46) -> 616.5275 | J47: =SUM(J45:J46) -> 488.718 | K47: =SUM(K45:K46) -> 75
F48: TOTAL (2da Cuota) : | G48: =G45 -> 1065.512 | H48: =H45 -> 759.9405 | I48: 541.5275 | J48: 413.718 | K48: 0
F49: GRAN TOTAL | G49: =SUM(G47:G48) -> 2206.024 | H49: =SUM(H47:H48) -> 1594.881 | I49: =SUM(I47:I48) -> 1158.055 | J49: =SUM(J47:J48) -> 902.436
F53: Este presupuesto solamente tiene carácter informativo y en ningún momento expresa compromiso legal para suministrarle cobertura de seguro. La emisión de una póliza de seguro Bupa está sujeta a todas las evaluaciones de riesgo por parte de Bupa y a la recepción de todos los pagos de prima requeridos.

Sheet Advantage (LA) (hidden)
A10: Cotización de Seguro Médico Internacional - Bupa ADVANTAGE Care (cobertura solo Latinoamérica)
A12: Bupa Advantage Care (cobertura solo en Latinoamérica) | H12: =+'INGRESO DE DATOS'!$C$36 -> John Doe
A13: Cobertura Máxima anual | C13: US $ 3,500,000
A14: Cobertura Geografica | C14: Limitada a Latinoamérica excluyendo México | H14: =+'INGRESO DE DATOS'!$C$47 -> Agencia
A15: Condiciones médicas cubiertas | C15: Todas las condiciones médicas
A16: Redes de proveedores | C16: Red de Proveedores "Bupa Advantage" | J16: =+'INGRESO DE DATOS'!$C$38 -> 1 | M16: =+'INGRESO DE DATOS'!$C$42 -> 24
A17: Opciones fuera de la Red | C17: NO, solo en casos de emergencia | F17: FECHA DE COTIZACION :
A18: Requiere preautorización | C18: SI, 30% de penalización por omitir prenotificación | F18: =NOW() -> 2023-12-27T16:02:06.490 | J18: =+'INGRESO DE DATOS'!$C$40 -> 0 | M18: =+'INGRESO DE DATOS'!$C$44 -> 55
A20: Número máximo de días de hospitalización | C20: Ilimitado | I20: TRUE | K20: COMPLICACIONES DE MATERNIDAD
A21: Habitación y alimentación | C21: 100% dentro de Red Bupa
C22: "UCR" para L.A. en emergencias fuera de Red Bupa | I22: TRUE | K22: TRASPLANTE DE ORGANOS
A23: Cuidados Intensivos | C23: 100% dentro de Red Bupa
C24: "UCR" para L.A. en emergencias fuera de Red Bupa
A25: Cobertura de Maternidad | C25: $5,000 (Excepto planes 4,5, y 6) | F25: Deducibles | H25: PLAN 1 | I25: PLAN 2 | J25: PLAN 3 | K25: PLAN 4 | L25: PLAN 5 | M25: PLAN 6
A26: Cobertura Provisional de Recién Nacido | C26: $30,000 por los primeros 90 días | F26: Dentro del pais de residencia | H26: n/a | I26: 1000 | J26: 2000 | K26: 5000 | L26: 10000 | M26: 20000
A27: Cuidado del Recién Nacido saludable | C27: Ya incluída dentro del beneficio de Maternidad | F27: Fuera del pais de residencia | H27: n/a | I27: 2000 | J27: 3000 | K27: 5000 | L27: 10000 | M27: 20000
A28: Cobertura de Complicaciones de Maternidad | C28: Disponible a través de cobertura opcional adicional
A29: Trasplante de Organos | C29: $1,000,000 de por vida, por diagnóstico
A30: Condiciones congénitas y hereditarias | C30: <18 años $300,000 de por vida; >=18 al 100% | F30: Tarifas Anuales
A31: Coberturas opcionales (Riders) | C31: Complicaciones de Maternidad por $500,000 | F31: Prima de Titular : | H31: n/a | I31: =VLOOKUP($M$16,Tablas!$A$370:$H$393,4,TRUE) -> 11240 | J31: =VLOOKUP($M$16,Tablas!$A$370:$H$393,5,TRUE) -> 8450 | K31: =VLOOKUP($M$16,Tablas!$A$370:$H$393,6,TRUE) -> 6003 | L31: =VLOOKUP($M$16,Tablas!$A$370:$H$393,7,TRUE) -> 4521 | M31: =VLOOKUP($M$16,Tablas!$A$370:$H$393,8,TRUE) -> 3578
C32: Trasplante de órganos por $ 300,000 adicionales | F32: Prima de Cónyuge | H32: n/a | I32: =IF($J$16=1,0,(VLOOKUP($M$18,Tablas!$A$370:$H$393,4,TRUE))) -> 0 | J32: =IF($J$16=1,0,(VLOOKUP($M$18,Tablas!$A$370:$H$393,5,TRUE))) -> 0 | K32: =IF($J$16=1,0,(VLOOKUP($M$18,Tablas!$A$370:$H$393,6,TRUE))) -> 0 | L32: =IF($J$16=1,0,(VLOOKUP($M$18,Tablas!$A$370:$H$393,7,TRUE))) -> 0 | M32: =IF($J$16=1,0,(VLOOKUP($M$18,Tablas!$A$370:$H$393,8,TRUE))) -> 0
A33: Acompañamiento de menores hospitalizados | C33: $300 por día | F33: Primas Hijos : | H33: n/a | I33: =IF($J$18=0,0,(VLOOKUP($J$18,Tablas!$A$394:$H$396,4,TRUE))) -> 0 | J33: =IF($J$18=0,0,(VLOOKUP($J$18,Tablas!$A$394:$H$396,5,TRUE))) -> 0 | K33: =IF($J$18=0,0,(VLOOKUP($J$18,Tablas!$A$394:$H$396,6,TRUE))) -> 0 | L33: =IF($J$18=0,0,(VLOOKUP($J$18,Tablas!$A$394:$H$396,7,TRUE))) -> 0 | M33: =IF($J$18=0,0,(VLOOKUP($J$18,Tablas!$A$394:$H$396,8,TRUE))) -> 0
A34: Ambulancia aérea | C34: $100,000 por año y ticket aéreo de retorno | F34: Prima Rider Complic. Maternidad | H34: n/a | I34: =+IF($I$20=FALSE,0,Tablas!D$397) -> 0 | J34: =+IF($I$20=FALSE,0,Tablas!E$397) -> 0 | K34: =+IF($I$20=FALSE,0,Tablas!F$397) -> 0 | L34: =+IF($I$20=FALSE,0,Tablas!G$397) -> 0 | M34: =+IF($I$20=FALSE,0,Tablas!H$397) -> 0
A35: Repatriación restos mortales | C35: 1 | F35: Prima Rider Trasplante Organos | H35: n/a | I35: =IF($I$22=FALSE,0,Tablas!D$398) -> 0 | J35: =IF($I$22=FALSE,0,Tablas!E$398) -> 0 | K35: =IF($I$22=FALSE,0,Tablas!F$398) -> 0 | L35: =IF($I$22=FALSE,0,Tablas!G$398) -> 0 | M35: =IF($I$22=FALSE,0,Tablas!H$398) -> 0
A36: Medicamentos por receta | C36: $6,000 por Asegurado, por año póliza | F36: TOTAL PRIMA NETA : | H36: n/a | I36: =SUM(I31:I35) -> 11240 | J36: 8450 | K36: 6003 | L36: 4521 | M36: 3578
A37: Almacenamiento de sangre de cordon umbilical | C37: $500 (Excepto planes 4,5, y 6) | F37: Costo Administrativo Anual : | H37: n/a | I37: 75 | J37: 75 | K37: 75 | L37: 75 | M37: 75
F38: GRAN TOTAL : | H38: n/a | I38: =SUM(I36:I37) -> 11315 | J38: =SUM(J36:J37) -> 8525 | K38: =SUM(K36:K37) -> 6078 | L38: =SUM(L36:L37) -> 4596 | M38: =SUM(M36:M37) -> 3653
A39: Atención médica en el hogar | C39: 100% de usual/acostumbrado y razonable
A40: Rehabilitación | C40: 100% de usual/acostumbrado y razonable | F40: Tarifas Semestrales
A41: Residencia y cuidados paliativos | C41: 100% de usual/acostumbrado y razonable | F41: Prima de Titular : | H41: n/a | I41: =VLOOKUP($M$16,Tablas!$A$403:$H$426,4,TRUE) -> 5957.2 | J41: =VLOOKUP($M$16,Tablas!$A$403:$H$426,5,TRUE) -> 4478.5 | K41: =VLOOKUP($M$16,Tablas!$A$403:$H$426,6,TRUE) -> 3181.59 | L41: =VLOOKUP($M$16,Tablas!$A$403:$H$426,7,TRUE) -> 2396.13 | M41: =VLOOKUP($M$16,Tablas!$A$403:$H$426,8,TRUE) -> 1896.34
A42: Cobertura de actividades peligrosas | C42: 1 | F42: Prima de Cónyuge | H42: n/a | I42: =IF($J$16=1,0,(VLOOKUP($M$18,Tablas!$A$403:$H$426,4,TRUE))) -> 0 | J42: =IF($J$16=1,0,(VLOOKUP($M$18,Tablas!$A$403:$H$426,5,TRUE))) -> 0 | K42: =IF($J$16=1,0,(VLOOKUP($M$18,Tablas!$A$403:$H$426,6,TRUE))) -> 0 | L42: =IF($J$16=1,0,(VLOOKUP($M$18,Tablas!$A$403:$H$426,7,TRUE))) -> 0 | M42: =IF($J$16=1,0,(VLOOKUP($M$18,Tablas!$A$403:$H$426,8,TRUE))) -> 0
A43: Chequeos generales de rutina | C43: Hasta US$150 por año póliza.Sin deducible | F43: Primas Hijos : | H43: n/a | I43: =IF($J$18=0,0,(VLOOKUP($J$18,Tablas!$A$427:$H$429,4,TRUE))) -> 0 | J43: =IF($J$18=0,0,(VLOOKUP($J$18,Tablas!$A$427:$H$429,5,TRUE))) -> 0 | K43: =IF($J$18=0,0,(VLOOKUP($J$18,Tablas!$A$427:$H$429,6,TRUE))) -> 0 | L43: =IF($J$18=0,0,(VLOOKUP($J$18,Tablas!$A$427:$H$429,7,TRUE))) -> 0 | M43: =IF($J$18=0,0,(VLOOKUP($J$18,Tablas!$A$427:$H$429,8,TRUE))) -> 0
A44: Cobertura de VIH, SIDA, CAS | C44: Solo como efecto de transfusión de sangre | F44: Prima Rider Complic. Maternidad | H44: n/a | I44: =+IF($I$20=FALSE,0,Tablas!D$430) -> 0 | J44: =+IF($I$20=FALSE,0,Tablas!E$430) -> 0 | K44: =+IF($I$20=FALSE,0,Tablas!F$430) -> 0 | L44: =+IF($I$20=FALSE,0,Tablas!G$430) -> 0 | M44: =+IF($I$20=FALSE,0,Tablas!H$430) -> 0
A45: Cobertura de brazos y piernas artificiales | C45: $30,000 por año y hasta $120,000 de por vida | F45: Prima Rider Trasplante Organos | H45: n/a | I45: =IF($I$22=FALSE,0,Tablas!D$431) -> 0 | J45: =IF($I$22=FALSE,0,Tablas!E$431) -> 0 | K45: =IF($I$22=FALSE,0,Tablas!F$431) -> 0 | L45: =IF($I$22=FALSE,0,Tablas!G$431) -> 0 | M45: =IF($I$22=FALSE,0,Tablas!H$431) -> 0
A46: Cobertura extendida para dependientes en caso de muerte de asegurado principal | C46: 2 años sin costo | F46: TOTAL PRIMA NETA : | H46: n/a | I46: =SUM(I41:I45) -> 5957.2 | J46: 4478.5 | K46: 3181.59 | L46: 2396.13 | M46: 1896.34
F47: Costo Administrativo Anual : | H47: n/a | I47: 75 | J47: 75 | K47: 75 | L47: 75 | M47: 75
F48: GRAN TOTAL (1ra Cuota) : | H48: n/a | I48: =SUM(I46:I47) -> 6032.2 | J48: =SUM(J46:J47) -> 4553.5 | K48: =SUM(K46:K47) -> 3256.59 | L48: =SUM(L46:L47) -> 2471.13 | M48: =SUM(M46:M47) -> 1971.34
F49: GRAN TOTAL (2da Cuota) : | H49: n/a | I49: =I46 -> 5957.2 | J49: =J46 -> 4478.5 | K49: 3181.59 | L49: 2396.13 | M49: 1896.34
F50: Tarifas en US $ - Válidas desde 01 Ene 2013

Sheet Secure Care International
B1: FALSE | C1: FALSE | H1: RESUMEN DE BENEFICIOS | V1: RESUMEN DE BENEFICIOS
A5: Cotización de Seguro Médico Internacional Bupa Secure Care International Tarifas en US$ | Validas: 1 de enero de 2024 | E5: REGIÓN
E7: =IF('INGRESO DE DATOS'!W14="PERU2020","Perú",'INGRESO DE DATOS'!W14) -> VENEZUELA
A13: Nombre del asegurado principal | B13: =+'INGRESO DE DATOS'!$C$36 -> John Doe
A15: Broker/Agente | B15: =+'INGRESO DE DATOS'!$C$47 -> Agencia
A17: Número de Adultos en la Póliza | B17: =+'INGRESO DE DATOS'!$C$38 -> 1 | C17: Dependientes (menores de 24 años) | E17: =+'INGRESO DE DATOS'!$C$40 -> 0
C18: =IF('INGRESO DE DATOS'!$P$2=TRUE, "Cotización para dependiente de 24 años","") -> Cotización para dependiente de 24 años
A19: Edad del Titular | B19: =+'INGRESO DE DATOS'!$C$42 -> 24 | C19: Edad del Cónyuge | E19: =+'INGRESO DE DATOS'!$C$44 -> 55
C21: Fecha de Cotización: | E21: =NOW() -> 2023-12-27T16:02:06.490
A25: DEDUCIBLES | B25: PLAN 1 | C25: PLAN 2 | D25: PLAN 3 | E25: PLAN 4 | F25: PLAN 5
A26: Dentro del pais de residencia | B26: N/A | C26: N/A | D26: N/A | E26: N/A | F26: 20000
A27: Fuera del pais de residencia | B27: 2000 | C27: 5000 | D27: 10000 | E27: 20000 | F27: 20000
A30: TARIFAS ANUALES
A31: Prima de Titular | B31: =VLOOKUP($B$19,Tablas!$A$440:$H$463,4,TRUE) -> 1171.9 | C31: =VLOOKUP($B$19,Tablas!$A$440:$H$463,5,TRUE) -> 838.45 | D31: =VLOOKUP($B$19,Tablas!$A$440:$H$463,6,TRUE) -> 727.95 | E31: =VLOOKUP($B$19,Tablas!$A$440:$H$463,7,TRUE) -> 560.25 | F31: =VLOOKUP($B$19,Tablas!$A$440:$H$463,8,TRUE) -> 17.5
A32: Prima de Cónyuge | B32: =IF($B$17=1,0,(VLOOKUP($E$19,Tablas!$A$440:$H$463,4,TRUE))) -> 0 | C32: =IF($B$17=1,0,(VLOOKUP($E$19,Tablas!$A$440:$H$463,5,TRUE))) -> 0 | D32: =IF($B$17=1,0,(VLOOKUP($E$19,Tablas!$A$440:$H$463,6,TRUE))) -> 0 | E32: =IF($B$17=1,0,(VLOOKUP($E$19,Tablas!$A$440:$H$463,7,TRUE))) -> 0 | F32: =IF($B$17=1,0,(VLOOKUP($E$19,Tablas!$A$440:$H$463,8,TRUE))) -> 0
A33: Primas Hijos | B33: =IF($E$17=0,0,(VLOOKUP($E$17,Tablas!$A$464:$H$466,4,TRUE))) -> 0 | C33: =IF($E$17=0,0,(VLOOKUP($E$17,Tablas!$A$464:$H$466,5,TRUE))) -> 0 | D33: =IF($E$17=0,0,(VLOOKUP($E$17,Tablas!$A$464:$H$466,6,TRUE))) -> 0 | E33: =IF($E$17=0,0,(VLOOKUP($E$17,Tablas!$A$464:$H$466,7,TRUE))) -> 0 | F33: =IF($E$17=0,0,(VLOOKUP($E$17,Tablas!$A$464:$H$466,8,TRUE))) -> 0
A34: Rider: Complicaciones de Maternidad | B34: =+IF($B$1=FALSE,0,Tablas!D$467) -> 0 | C34: =+IF($B$1=FALSE,0,Tablas!E$467) -> 0 | D34: =+IF($B$1=FALSE,0,Tablas!F$467) -> 0 | E34: =+IF($B$1=FALSE,0,Tablas!G$467) -> 0 | F34: =+IF($B$1=FALSE,0,Tablas!H$467) -> 0
A35: Rider: Trasplante Organos | B35: =IF($C$1=FALSE,0,Tablas!D$468) -> 0 | C35: =IF($C$1=FALSE,0,Tablas!E$468) -> 0 | D35: =IF($C$1=FALSE,0,Tablas!F$468) -> 0 | E35: =IF($C$1=FALSE,0,Tablas!G$468) -> 0 | F35: =IF($C$1=FALSE,0,Tablas!H$468) -> 0
A36: TOTAL PRIMA NETA | B36: =SUM(B31:B35) -> 1171.9 | C36: 838.45 | D36: 727.95 | E36: 560.25 | F36: 17.5
A37: Costo Administrativo Annual | B37: 75 | C37: 75 | D37: 75 | E37: 75 | F37: 75
A38: GRAN TOTAL : | B38: =SUM(B36:B37) -> 1246.9 | C38: =SUM(C36:C37) -> 913.45 | D38: =SUM(D36:D37) -> 802.95 | E38: =SUM(E36:E37) -> 635.25 | F38: =SUM(F36:F37) -> 92.5
A40: TARIFAS SEMESTRALES
A41: Prima de Titular | B41: =VLOOKUP($B$19,Tablas!$A$476:$H$499,4,TRUE) -> 621.107 | C41: =VLOOKUP($B$19,Tablas!$A$476:$H$499,5,TRUE) -> 444.3785 | D41: =VLOOKUP($B$19,Tablas!$A$476:$H$499,6,TRUE) -> 385.8135 | E41: =VLOOKUP($B$19,Tablas!$A$476:$H$499,7,TRUE) -> 296.9325 | F41: =VLOOKUP($B$19,Tablas!$A$476:$H$499,8,TRUE) -> 9.275
A42: Prima de Cónyuge | B42: =IF($B$17=1,0,(VLOOKUP($E$19,Tablas!$A$476:$H$499,4,TRUE))) -> 0 | C42: =IF($B$17=1,0,(VLOOKUP($E$19,Tablas!$A$476:$H$499,5,TRUE))) -> 0 | D42: =IF($B$17=1,0,(VLOOKUP($E$19,Tablas!$A$476:$H$499,6,TRUE))) -> 0 | E42: =IF($B$17=1,0,(VLOOKUP($E$19,Tablas!$A$476:$H$499,7,TRUE))) -> 0 | F42: =IF($B$17=1,0,(VLOOKUP($E$19,Tablas!$A$476:$H$499,8,TRUE))) -> 0
A43: Primas Hijos | B43: =IF($E$17=0,0,(VLOOKUP($E$17,Tablas!$A$500:$H$502,4,TRUE))) -> 0 | C43: =IF($E$17=0,0,(VLOOKUP($E$17,Tablas!$A$500:$H$502,5,TRUE))) -> 0 | D43: =IF($E$17=0,0,(VLOOKUP($E$17,Tablas!$A$500:$H$502,6,TRUE))) -> 0 | E43: =IF($E$17=0,0,(VLOOKUP($E$17,Tablas!$A$500:$H$502,7,TRUE))) -> 0 | F43: =IF($E$17=0,0,(VLOOKUP($E$17,Tablas!$A$500:$H$502,8,TRUE))) -> 0
A44: Rider: Complicaciones de Maternidad | B44: =+IF($B$1=FALSE,0,Tablas!D$503) -> 0 | C44: =+IF($B$1=FALSE,0,Tablas!E$503) -> 0 | D44: =+IF($B$1=FALSE,0,Tablas!F$503) -> 0 | E44: =+IF($B$1=FALSE,0,Tablas!G$503) -> 0 | F44: =+IF($B$1=FALSE,0,Tablas!H$503) -> 0
A45: Rider: Trasplante Organos | B45: =IF($C$1=FALSE,0,Tablas!D$504) -> 0 | C45: =IF($C$1=FALSE,0,Tablas!E$504) -> 0 | D45: =IF($C$1=FALSE,0,Tablas!F$504) -> 0 | E45: =IF($C$1=FALSE,0,Tablas!G$504) -> 0 | F45: =IF($C$1=FALSE,0,Tablas!H$504) -> 0
A46: TOTAL PRIMA NETA | B46: =SUM(B41:B45) -> 621.107 | C46: 444.3785 | D46: 385.8135 | E46: 296.9325 | F46: 9.275
A47: Costo Administrativo Anual | B47: 75 | C47: 75 | D47: 75 | E47: 75 | F47: 75
A48: TOTAL (1ra Cuota) | B48: =SUM(B46:B47) -> 696.107 | C48: =SUM(C46:C47) -> 519.3785 | D48: =SUM(D46:D47) -> 460.8135 | E48: =SUM(E46:E47) -> 371.9325 | F48: =SUM(F46:F47) -> 84.275
A49: TOTAL (2da Cuota) | B49: =B46 -> 621.107 | C49: =C46 -> 444.3785 | D49: 385.8135 | E49: 296.9325 | F49: 9.275
A50: GRAN TOTAL | B50: =SUM(B48:B49) -> 1317.214 | C50: =SUM(C48:C49) -> 963.757 | D50: =SUM(D48:D49) -> 846.627 | E50: =SUM(E48:E49) -> 668.865
A53: Este presupuesto solamente tiene carácter informativo y en ningún momento expresa compromiso legal para suministrarle cobertura de seguro. La emisión de una póliza de seguro Bupa está sujeta a todas las evaluaciones de riesgo por parte de Bupa y a la recepción de todos los pagos de prima requeridos.

Sheet Resumen tarifas anuales
A5: Cotización de Seguro Médico Internacional Bupa International Tarifas en US$ | Validas: 1 de enero de 2024 | E5: REGIÓN
E7: =IF('INGRESO DE DATOS'!W14="PERU2020","Perú",'INGRESO DE DATOS'!W14) -> VENEZUELA
A13: Nombre del asegurado principal | B13: =+'INGRESO DE DATOS'!$C$36 -> John Doe
A15: Broker/Agente | B15: =+'INGRESO DE DATOS'!$C$47 -> Agencia
A17: Número de Adultos en la Póliza | B17: =+'INGRESO DE DATOS'!$C$38 -> 1 | C17: Dependientes (menores de 24 años) | F17: =+'INGRESO DE DATOS'!$C$40 -> 0
C18: =IF('INGRESO DE DATOS'!$P$2=TRUE, "Cotización para dependiente de 24 años","") -> Cotización para dependiente de 24 años
A19: Edad del Titular | B19: =+'INGRESO DE DATOS'!$C$42 -> 24 | D19: Edad del Cónyuge | F19: =+'INGRESO DE DATOS'!$C$44 -> 55
A22: DEDUCIBLES | C22: PLAN 1 | D22: PLAN 2 | E22: PLAN 3 | F22: PLAN 4
A23: Dentro del pais de residencia | C23: N/A | D23: N/A | E23: N/A | F23: N/A
A24: Fuera del pais de residencia | C24: 2000 | D24: 5000 | E24: 10000 | F24: 20000
A26: Bupa Privilege Care International
A27: Tarifas Anuales | C27: ='Privilege Care International'!G37 -> 2085.4 | D27: ='Privilege Care International'!H37 -> 1508.85 | E27: ='Privilege Care International'!I37 -> 1096.75 | F27: ='Privilege Care International'!J37 -> 855.6
A28: Tarifas Semestrales | C28: ='Privilege Care International'!G49 -> 2206.024 | D28: ='Privilege Care International'!H49 -> 1594.881 | E28: ='Privilege Care International'!I49 -> 1158.055 | F28: ='Privilege Care International'!J49 -> 902.436
A30: Bupa Secure Care International
A31: Tarifas Anuales | C31: ='Secure Care International'!B38 -> 1246.9 | D31: ='Secure Care International'!C38 -> 913.45 | E31: ='Secure Care International'!D38 -> 802.95 | F31: ='Secure Care International'!E38 -> 635.25
A32: Tarifas Semestrales | C32: ='Secure Care International'!B50 -> 1317.214 | D32: ='Secure Care International'!C50 -> 963.757 | E32: ='Secure Care International'!D50 -> 846.627 | F32: ='Secure Care International'!E50 -> 668.865

Sheet Comparacion de Beneficios (hidden)
A1: 2023 BUPA CARE COMPARACION DE BENEFICIOS

Sheet Tablas (hidden)
K1: Critical | L1: Exclusive | M1: Privilege | N1: Advantage | O1: Secure | P1: Essential
B2: REGIÓN | C2: ='INGRESO DE DATOS'!W14 -> VENEZUELA | E2: FACTOR SEMESTRAL : | G2: 0.53 | I2: TOTAL DISCOUNT | K2: ='INGRESO DE DATOS'!O42 -> 0.65 | L2: ='INGRESO DE DATOS'!P42 -> 0.65 | M2: ='INGRESO DE DATOS'!Q42 -> 0.65 | N2: ='INGRESO DE DATOS'!R42 -> 0.65 | O2: ='INGRESO DE DATOS'!S42 -> 0.65 | P2: ='INGRESO DE DATOS'!T42 -> 0.65
A5: BUPA EXCLUSIVE CARE | K5: ORIGINAL RATES | Q5: DISCOUNTS APPLIED
A6: TARIFAS ANUALES
A7: EDAD
C8: DW1 | D8: DW2 | E8: DW3 | F8: DW4 | G8: DW5 | H8: DW6
A9: 18 | B9: 18-24 | D9: =Q9 -> 17.5 | E9: =R9 -> 17.5 | F9: 17.5 | G9: 17.5 | H9: 17.5 | K9: =IF($C$2=2,Venezuela!D9,IF($C$2=3,#REF!,IF($C$2=4,#REF!,IF($C$2=5,#REF!,IF($C$2=6,#REF!,IF($C$2=8,#REF!,IF($C$2=9,#REF!,IF($C$2="PERU2020",#REF!)))))))) -> FALSE | L9: =IF($C$2=2,Venezuela!E9,IF($C$2=3,#REF!,IF($C$2=4,#REF!,IF($C$2=5,#REF!,IF($C$2=6,#REF!,IF($C$2=8,#REF!,IF($C$2=9,#REF!,IF($C$2="PERU2020",#REF!)))))))) -> FALSE | M9: =IF($C$2=2,Venezuela!F9,IF($C$2=3,#REF!,IF($C$2=4,#REF!,IF($C$2=5,#REF!,IF($C$2=6,#REF!,IF($C$2=8,#REF!,IF($C$2=9,#REF!,IF($C$2="PERU2020",#REF!)))))))) -> FALSE | N9: =IF($C$2=2,Venezuela!G9,IF($C$2=3,#REF!,IF($C$2=4,#REF!,IF($C$2=5,#REF!,IF($C$2=6,#REF!,IF($C$2=8,#REF!,IF($C$2=9,#REF!,IF($C$2="PERU2020",#REF!)))))))) -> FALSE | O9: =IF($C$2=2,Venezuela!H9,IF($C$2=3,#REF!,IF($C$2=4,#REF!,IF($C$2=5,#REF!,IF($C$2=6,#REF!,IF($C$2=8,#REF!,IF($C$2=9,#REF!,IF($C$2="PERU2020",#REF!)))))))) -> FALSE | Q9: =(K9-50)*$L$2+50 -> 17.5 | R9: =(L9-50)*$L$2+50 -> 17.5 | S9: 17.5 | T9: 17.5 | U9: 17.5
A10: 25 | B10: 25-29 | D10: =Q10 -> 17.5 | E10: =R10 -> 17.5 | F10: =S10 -> 17.5 | G10: =T10 -> 17.5 | H10: =U10 -> 17.5 | K10: =IF($C$2=2,Venezuela!D10,IF($C$2=3,#REF!,IF($C$2=4,#REF!,IF($C$2=5,#REF!,IF($C$2=6,#REF!,IF($C$2=8,#REF!,IF($C$2=9,#REF!,IF($C$2="PERU2020",#REF!)))))))) -> FALSE | L10: =IF($C$2=2,Venezuela!E10,IF($C$2=3,#REF!,IF($C$2=4,#REF!,IF($C$2=5,#REF!,IF($C$2=6,#REF!,IF($C$2=8,#REF!,IF($C$2=9,#REF!,IF($C$2="PERU2020",#REF!)))))))) -> FALSE | M10: =IF($C$2=2,Venezuela!F10,IF($C$2=3,#REF!,IF($C$2=4,#REF!,IF($C$2=5,#REF!,IF($C$2=6,#REF!,IF($C$2=8,#REF!,IF($C$2=9,#REF!,IF($C$2="PERU2020",#REF!)))))))) -> FALSE | N10: =IF($C$2=2,Venezuela!G10,IF($C$2=3,#REF!,IF($C$2=4,#REF!,IF($C$2=5,#REF!,IF($C$2=6,#REF!,IF($C$2=8,#REF!,IF($C$2=9,#REF!,IF($C$2="PERU2020",#REF!)))))))) -> FALSE | O10: =IF($C$2=2,Venezuela!H10,IF($C$2=3,#REF!,IF($C$2=4,#REF!,IF($C$2=5,#REF!,IF($C$2=6,#REF!,IF($C$2=8,#REF!,IF($C$2=9,#REF!,IF($C$2="PERU2020",#REF!)))))))) -> FALSE | Q10: =(K10-50)*$L$2+50 -> 17.5 | R10: =(L10-50)*$L$2+50 -> 17.5 | S10: =(M10-50)*$L$2+50 -> 17.5 | T10: =(N10-50)*$L$2+50 -> 17.5 | U10: =(O10-50)*$L$2+50 -> 17.5
A11: 30 | B11: 30-34 | D11: 17.5 | E11: 17.5 | F11: 17.5 | G11: 17.5 | H11: 17.5 | K11: =IF($C$2=2,Venezuela!D11,IF($C$2=3,#REF!,IF($C$2=4,#REF!,IF($C$2=5,#REF!,IF($C$2=6,#REF!,IF($C$2=8,#REF!,IF($C$2=9,#REF!,IF($C$2="PERU2020",#REF!)))))))) -> FALSE | L11: =IF($C$2=2,Venezuela!E11,IF($C$2=3,#REF!,IF($C$2=4,#REF!,IF($C$2=5,#REF!,IF($C$2=6,#REF!,IF($C$2=8,#REF!,IF($C$2=9,#REF!,IF($C$2="PERU2020",#REF!)))))))) -> FALSE | M11: =IF($C$2=2,Venezuela!F11,IF($C$2=3,#REF!,IF($C$2=4,#REF!,IF($C$2=5,#REF!,IF($C$2=6,#REF!,IF($C$2=8,#REF!,IF($C$2=9,#REF!,IF($C$2="PERU2020",#REF!)))))))) -> FALSE | N11: =IF($C$2=2,Venezuela!G11,IF($C$2=3,#REF!,IF($C$2=4,#REF!,IF($C$2=5,#REF!,IF($C$2=6,#REF!,IF($C$2=8,#REF!,IF($C$2=9,#REF!,IF($C$2="PERU2020",#REF!)))))))) -> FALSE | O11: =IF($C$2=2,Venezuela!H11,IF($C$2=3,#REF!,IF($C$2=4,#REF!,IF($C$2=5,#REF!,IF($C$2=6,#REF!,IF($C$2=8,#REF!,IF($C$2=9,#REF!,IF($C$2="PERU2020",#REF!)))))))) -> FALSE | Q11: 17.5 | R11: 17.5 | S11: 17.5 | T11: 17.5 | U11: 17.5
A12: 35 | B12: 35-39 | D12: 17.5 | E12: 17.5 | F12: 17.5 | G12: 17.5 | H12: 17.5 | K12: =IF($C$2=2,Venezuela!D12,IF($C$2=3,#REF!,IF($C$2=4,#REF!,IF($C$2=5,#REF!,IF($C$2=6,#REF!,IF($C$2=8,#REF!,IF($C$2=9,#REF!,IF($C$2="PERU2020",#REF!)))))))) -> FALSE | L12: =IF($C$2=2,Venezuela!E12,IF($C$2=3,#REF!,IF($C$2=4,#REF!,IF($C$2=5,#REF!,IF($C$2=6,#REF!,IF($C$2=8,#REF!,IF($C$2=9,#REF!,IF($C$2="PERU2020",#REF!)))))))) -> FALSE | M12: =IF($C$2=2,Venezuela!F12,IF($C$2=3,#REF!,IF($C$2=4,#REF!,IF($C$2=5,#REF!,IF($C$2=6,#REF!,IF($C$2=8,#REF!,IF($C$2=9,#REF!,IF($C$2="PERU2020",#REF!)))))))) -> FALSE | N12: =IF($C$2=2,Venezuela!G12,IF($C$2=3,#REF!,IF($C$2=4,#REF!,IF($C$2=5,#REF!,IF($C$2=6,#REF!,IF($C$2=8,#REF!,IF($C$2=9,#REF!,IF($C$2="PERU2020",#REF!)))))))) -> FALSE | O12: =IF($C$2=2,Venezuela!H12,IF($C$2=3,#REF!,IF($C$2=4,#REF!,IF($C$2=5,#REF!,IF($C$2=6,#REF!,IF($C$2=8,#REF!,IF($C$2=9,#REF!,IF($C$2="PERU2020",#REF!)))))))) -> FALSE | Q12: 17.5 | R12: 17.5 | S12: 17.5 | T12: 17.5 | U12: 17.5
A13: 40 | B13: 40-44 | D13: 17.5 | E13: 17.5 | F13: 17.5 | G13: 17.5 | H13: 17.5 | K13: =IF($C$2=2,Venezuela!D13,IF($C$2=3,#REF!,IF($C$2=4,#REF!,IF($C$2=5,#REF!,IF($C$2=6,#REF!,IF($C$2=8,#REF!,IF($C$2=9,#REF!,IF($C$2="PERU2020",#REF!)))))))) -> FALSE | L13: =IF($C$2=2,Venezuela!E13,IF($C$2=3,#REF!,IF($C$2=4,#REF!,IF($C$2=5,#REF!,IF($C$2=6,#REF!,IF($C$2=8,#REF!,IF($C$2=9,#REF!,IF($C$2="PERU2020",#REF!)))))))) -> FALSE | M13: =IF($C$2=2,Venezuela!F13,IF($C$2=3,#REF!,IF($C$2=4,#REF!,IF($C$2=5,#REF!,IF($C$2=6,#REF!,IF($C$2=8,#REF!,IF($C$2=9,#REF!,IF($C$2="PERU2020",#REF!)))))))) -> FALSE | N13: =IF($C$2=2,Venezuela!G13,IF($C$2=3,#REF!,IF($C$2=4,#REF!,IF($C$2=5,#REF!,IF($C$2=6,#REF!,IF($C$2=8,#REF!,IF($C$2=9,#REF!,IF($C$2="PERU2020",#REF!)))))))) -> FALSE | O13: =IF($C$2=2,Venezuela!H13,IF($C$2=3,#REF!,IF($C$2=4,#REF!,IF($C$2=5,#REF!,IF($C$2=6,#REF!,IF($C$2=8,#REF!,IF($C$2=9,#REF!,IF($C$2="PERU2020",#REF!)))))))) -> FALSE | Q13: 17.5 | R13: 17.5 | S13: 17.5 | T13: 17.5 | U13: 17.5
A14: 45 | B14: 45-49 | D14: 17.5 | E14: 17.5 | F14: 17.5 | G14: 17.5 | H14: 17.5 | K14: =IF($C$2=2,Venezuela!D14,IF($C$2=3,#REF!,IF($C$2=4,#REF!,IF($C$2=5,#REF!,IF($C$2=6,#REF!,IF($C$2=8,#REF!,IF($C$2=9,#REF!,IF($C$2="PERU2020",#REF!)))))))) -> FALSE | L14: =IF($C$2=2,Venezuela!E14,IF($C$2=3,#REF!,IF($C$2=4,#REF!,IF($C$2=5,#REF!,IF($C$2=6,#REF!,IF($C$2=8,#REF!,IF($C$2=9,#REF!,IF($C$2="PERU2020",#REF!)))))))) -> FALSE | M14: =IF($C$2=2,Venezuela!F14,IF($C$2=3,#REF!,IF($C$2=4,#REF!,IF($C$2=5,#REF!,IF($C$2=6,#REF!,IF($C$2=8,#REF!,IF($C$2=9,#REF!,IF($C$2="PERU2020",#REF!)))))))) -> FALSE | N14: =IF($C$2=2,Venezuela!G14,IF($C$2=3,#REF!,IF($C$2=4,#REF!,IF($C$2=5,#REF!,IF($C$2=6,#REF!,IF($C$2=8,#REF!,IF($C$2=9,#REF!,IF($C$2="PERU2020",#REF!)))))))) -> FALSE | O14: =IF($C$2=2,Venezuela!H14,IF($C$2=3,#REF!,IF($C$2=4,#REF!,IF($C$2=5,#REF!,IF($C$2=6,#REF!,IF($C$2=8,#REF!,IF($C$2=9,#REF!,IF($C$2="PERU2020",#REF!)))))))) -> FALSE | Q14: 17.5 | R14: 17.5 | S14: 17.5 | T14: 17.5 | U14: 17.5
A15: 50 | B15: 50-54 | D15: 17.5 | E15: 17.5 | F15: 17.5 | G15: 17.5 | H15: 17.5 | K15: =IF($C$2=2,Venezuela!D15,IF($C$2=3,#REF!,IF($C$2=4,#REF!,IF($C$2=5,#REF!,IF($C$2=6,#REF!,IF($C$2=8,#REF!,IF($C$2=9,#REF!,IF($C$2="PERU2020",#REF!)))))))) -> FALSE | L15: =IF($C$2=2,Venezuela!E15,IF($C$2=3,#REF!,IF($C$2=4,#REF!,IF($C$2=5,#REF!,IF($C$2=6,#REF!,IF($C$2=8,#REF!,IF($C$2=9,#REF!,IF($C$2="PERU2020",#REF!)))))))) -> FALSE | M15: =IF($C$2=2,Venezuela!F15,IF($C$2=3,#REF!,IF($C$2=4,#REF!,IF($C$2=5,#REF!,IF($C$2=6,#REF!,IF($C$2=8,#REF!,IF($C$2=9,#REF!,IF($C$2="PERU2020",#REF!)))))))) -> FALSE | N15: =IF($C$2=2,Venezuela!G15,IF($C$2=3,#REF!,IF($C$2=4,#REF!,IF($C$2=5,#REF!,IF($C$2=6,#REF!,IF($C$2=8,#REF!,IF($C$2=9,#REF!,IF($C$2="PERU2020",#REF!)))))))) -> FALSE | O15: =IF($C$2=2,Venezuela!H15,IF($C$2=3,#REF!,IF($C$2=4,#REF!,IF($C$2=5,#REF!,IF($C$2=6,#REF!,IF($C$2=8,#REF!,IF($C$2=9,#REF!,IF($C$2="PERU2020",#REF!)))))))) -> FALSE | Q15: 17.5 | R15: 17.5 | S15: 17.5 | T15: 17.5 | U15: 17.5
A16: 55 | B16: 55-59 | D16: 17.5 | E16: 17.5 | F16: 17.5 | G16: 17.5 | H16: 17.5 | K16: =IF($C$2=2,Venezuela!D16,IF($C$2=3,#REF!,IF($C$2=4,#REF!,IF($C$2=5,#REF!,IF($C$2=6,#REF!,IF($C$2=8,#REF!,IF($C$2=9,#REF!,IF($C$2="PERU2020",#REF!)))))))) -> FALSE | L16: =IF($C$2=2,Venezuela!E16,IF($C$2=3,#REF!,IF($C$2=4,#REF!,IF($C$2=5,#REF!,IF($C$2=6,#REF!,IF($C$2=8,#REF!,IF($C$2=9,#REF!,IF($C$2="PERU2020",#REF!)))))))) -> FALSE | M16: =IF($C$2=2,Venezuela!F16,IF($C$2=3,#REF!,IF($C$2=4,#REF!,IF($C$2=5,#REF!,IF($C$2=6,#REF!,IF($C$2=8,#REF!,IF($C$2=9,#REF!,IF($C$2="PERU2020",#REF!)))))))) -> FALSE | N16: =IF($C$2=2,Venezuela!G16,IF($C$2=3,#REF!,IF($C$2=4,#REF!,IF($C$2=5,#REF!,IF($C$2=6,#REF!,IF($C$2=8,#REF!,IF($C$2=9,#REF!,IF($C$2="PERU2020",#REF!)))))))) -> FALSE | O16: =IF($C$2=2,Venezuela!H16,IF($C$2=3,#REF!,IF($C$2=4,#REF!,IF($C$2=5,#REF!,IF($C$2=6,#REF!,IF($C$2=8,#REF!,IF($C$2=9,#REF!,IF($C$2="PERU2020",#REF!)))))))) -> FALSE | Q16: 17.5 | R16: 17.5 | S16: 17.5 | T16: 17.5 | U16: 17.5
A17: 60 | B17: 60 | D17: 17.5 | E17: 17.5 | F17: 17.5 | G17: 17.5 | H17: 17.5 | K17: =IF($C$2=2,Venezuela!D17,IF($C$2=3,#REF!,IF($C$2=4,#REF!,IF($C$2=5,#REF!,IF($C$2=6,#REF!,IF($C$2=8,#REF!,IF($C$2=9,#REF!,IF($C$2="PERU2020",#REF!)))))))) -> FALSE | L17: =IF($C$2=2,Venezuela!E17,IF($C$2=3,#REF!,IF($C$2=4,#REF!,IF($C$2=5,#REF!,IF($C$2=6,#REF!,IF($C$2=8,#REF!,IF($C$2=9,#REF!,IF($C$2="PERU2020",#REF!)))))))) -> FALSE | M17: =IF($C$2=2,Venezuela!F17,IF($C$2=3,#REF!,IF($C$2=4,#REF!,IF($C$2=5,#REF!,IF($C$2=6,#REF!,IF($C$2=8,#REF!,IF($C$2=9,#REF!,IF($C$2="PERU2020",#REF!)))))))) -> FALSE | N17: =IF($C$2=2,Venezuela!G17,IF($C$2=3,#REF!,IF($C$2=4,#REF!,IF($C$2=5,#REF!,IF($C$2=6,#REF!,IF($C$2=8,#REF!,IF($C$2=9,#REF!,IF($C$2="PERU2020",#REF!)))))))) -> FALSE | O17: =IF($C$2=2,Venezuela!H17,IF($C$2=3,#REF!,IF($C$2=4,#REF!,IF($C$2=5,#REF!,IF($C$2=6,#REF!,IF($C$2=8,#REF!,IF($C$2=9,#REF!,IF($C$2="PERU2020",#REF!)))))))) -> FALSE | Q17: 17.5 | R17: 17.5 | S17: 17.5 | T17: 17.5 | U17: 17.5
A18: 61 | B18: 61 | D18: 17.5 | E18: 17.5 | F18: 17.5 | G18: 17.5 | H18: 17.5 | K18: =IF($C$2=2,Venezuela!D18,IF($C$2=3,#REF!,IF($C$2=4,#REF!,IF($C$2=5,#REF!,IF($C$2=6,#REF!,IF($C$2=8,#REF!,IF($C$2=9,#REF!,IF($C$2="PERU2020",#REF!)))))))) -> FALSE | L18: =IF($C$2=2,Venezuela!E18,IF($C$2=3,#REF!,IF($C$2=4,#REF!,IF($C$2=5,#REF!,IF($C$2=6,#REF!,IF($C$2=8,#REF!,IF($C$2=9,#REF!,IF($C$2="PERU2020",#REF!)))))))) -> FALSE | M18: =IF($C$2=2,Venezuela!F18,IF($C$2=3,#REF!,IF($C$2=4,#REF!,IF($C$2=5,#REF!,IF($C$2=6,#REF!,IF($C$2=8,#REF!,IF($C$2=9,#REF!,IF($C$2="PERU2020",#REF!)))))))) -> FALSE | N18: =IF($C$2=2,Venezuela!G18,IF($C$2=3,#REF!,IF($C$2=4,#REF!,IF($C$2=5,#REF!,IF($C$2=6,#REF!,IF($C$2=8,#REF!,IF($C$2=9,#REF!,IF($C$2="PERU2020",#REF!)))))))) -> FALSE | O18: =IF($C$2=2,Venezuela!H18,IF($C$2=3,#REF!,IF($C$2=4,#REF!,IF($C$2=5,#REF!,IF($C$2=6,#REF!,IF($C$2=8,#REF!,IF($C$2=9,#REF!,IF($C$2="PERU2020",#REF!)))))))) -> FALSE | Q18: 17.5 | R18: 17.5 | S18: 17.5 | T18: 17.5 | U18: 17.5
A19: 62 | B19: 62 | D19: 17.5 | E19: 17.5 | F19: 17.5 | G19: 17.5 | H19: 17.5 | K19: =IF($C$2=2,Venezuela!D19,IF($C$2=3,#REF!,IF($C$2=4,#REF!,IF($C$2=5,#REF!,IF($C$2=6,#REF!,IF($C$2=8,#REF!,IF($C$2=9,#REF!,IF($C$2="PERU2020",#REF!)))))))) -> FALSE | L19: =IF($C$2=2,Venezuela!E19,IF($C$2=3,#REF!,IF($C$2=4,#REF!,IF($C$2=5,#REF!,IF($C$2=6,#REF!,IF($C$2=8,#REF!,IF($C$2=9,#REF!,IF($C$2="PERU2020",#REF!)))))))) -> FALSE | M19: =IF($C$2=2,Venezuela!F19,IF($C$2=3,#REF!,IF($C$2=4,#REF!,IF($C$2=5,#REF!,IF($C$2=6,#REF!,IF($C$2=8,#REF!,IF($C$2=9,#REF!,IF($C$2="PERU2020",#REF!)))))))) -> FALSE | N19: =IF($C$2=2,Venezuela!G19,IF($C$2=3,#REF!,IF($C$2=4,#REF!,IF($C$2=5,#REF!,IF($C$2=6,#REF!,IF($C$2=8,#REF!,IF($C$2=9,#REF!,IF($C$2="PERU2020",#REF!)))))))) -> FALSE | O19: =IF($C$2=2,Venezuela!H19,IF($C$2=3,#REF!,IF($C$2=4,#REF!,IF($C$2=5,#REF!,IF($C$2=6,#REF!,IF($C$2=8,#REF!,IF($C$2=9,#REF!,IF($C$2="PERU2020",#REF!)))))))) -> FALSE | Q19: 17.5 | R19: 17.5 | S19: 17.5 | T19: 17.5 | U19: 17.5
A20: 63 | B20: 63 | D20: 17.5 | E20: 17.5 | F20: 17.5 | G20: 17.5 | H20: 17.5 | K20: =IF($C$2=2,Venezuela!D20,IF($C$2=3,#REF!,IF($C$2=4,#REF!,IF($C$2=5,#REF!,IF($C$2=6,#REF!,IF($C$2=8,#REF!,IF($C$2=9,#REF!,IF($C$2="PERU2020",#REF!)))))))) -> FALSE | L20: =IF($C$2=2,Venezuela!E20,IF($C$2=3,#REF!,IF($C$2=4,#REF!,IF($C$2=5,#REF!,IF($C$2=6,#REF!,IF($C$2=8,#REF!,IF($C$2=9,#REF!,IF($C$2="PERU2020",#REF!)))))))) -> FALSE | M20: =IF($C$2=2,Venezuela!F20,IF($C$2=3,#REF!,IF($C$2=4,#REF!,IF($C$2=5,#REF!,IF($C$2=6,#REF!,IF($C$2=8,#REF!,IF($C$2=9,#REF!,IF($C$2="PERU2020",#REF!)))))))) -> FALSE | N20: =IF($C$2=2,Venezuela!G20,IF($C$2=3,#REF!,IF($C$2=4,#REF!,IF($C$2=5,#REF!,IF($C$2=6,#REF!,IF($C$2=8,#REF!,IF($C$2=9,#REF!,IF($C$2="PERU2020",#REF!)))))))) -> FALSE | O20: =IF($C$2=2,Venezuela!H20,IF($C$2=3,#REF!,IF($C$2=4,#REF!,IF($C$2=5,#REF!,IF($C$2=6,#REF!,IF($C$2=8,#REF!,IF($C$2=9,#REF!,IF($C$2="PERU2020",#REF!)))))))) -> FALSE | Q20: 17.5 | R20: 17.5 | S20: 17.5 | T20: 17.5 | U20: 17.5
A21: 64 | B21: 64 | D21: 17.5 | E21: 17.5 | F21: 17.5 | G21: 17.5 | H21: 17.5 | K21: =IF($C$2=2,Venezuela!D21,IF($C$2=3,#REF!,IF($C$2=4,#REF!,IF($C$2=5,#REF!,IF($C$2=6,#REF!,IF($C$2=8,#REF!,IF($C$2=9,#REF!,IF($C$2="PERU2020",#REF!)))))))) -> FALSE | L21: =IF($C$2=2,Venezuela!E21,IF($C$2=3,#REF!,IF($C$2=4,#REF!,IF($C$2=5,#REF!,IF($C$2=6,#REF!,IF($C$2=8,#REF!,IF($C$2=9,#REF!,IF($C$2="PERU2020",#REF!)))))))) -> FALSE | M21: =IF($C$2=2,Venezuela!F21,IF($C$2=3,#REF!,IF($C$2=4,#REF!,IF($C$2=5,#REF!,IF($C$2=6,#REF!,IF($C$2=8,#REF!,IF($C$2=9,#REF!,IF($C$2="PERU2020",#REF!)))))))) -> FALSE | N21: =IF($C$2=2,Venezuela!G21,IF($C$2=3,#REF!,IF($C$2=4,#REF!,IF($C$2=5,#REF!,IF($C$2=6,#REF!,IF($C$2=8,#REF!,IF($C$2=9,#REF!,IF($C$2="PERU2020",#REF!)))))))) -> FALSE | O21: =IF($C$2=2,Venezuela!H21,IF($C$2=3,#REF!,IF($C$2=4,#REF!,IF($C$2=5,#REF!,IF($C$2=6,#REF!,IF($C$2=8,#REF!,IF($C$2=9,#REF!,IF($C$2="PERU2020",#REF!)))))))) -> FALSE | Q21: 17.5 | R21: 17.5 | S21: 17.5 | T21: 17.5 | U21: 17.5
A22: 65 | B22: 65 | D22: 17.5 | E22: 17.5 | F22: 17.5 | G22: 17.5 | H22: 17.5 | K22: =IF($C$2=2,Venezuela!D22,IF($C$2=3,#REF!,IF($C$2=4,#REF!,IF($C$2=5,#REF!,IF($C$2=6,#REF!,IF($C$2=8,#REF!,IF($C$2=9,#REF!,IF($C$2="PERU2020",#REF!)))))))) -> FALSE | L22: =IF($C$2=2,Venezuela!E22,IF($C$2=3,#REF!,IF($C$2=4,#REF!,IF($C$2=5,#REF!,IF($C$2=6,#REF!,IF($C$2=8,#REF!,IF($C$2=9,#REF!,IF($C$2="PERU2020",#REF!)))))))) -> FALSE | M22: =IF($C$2=2,Venezuela!F22,IF($C$2=3,#REF!,IF($C$2=4,#REF!,IF($C$2=5,#REF!,IF($C$2=6,#REF!,IF($C$2=8,#REF!,IF($C$2=9,#REF!,IF($C$2="PERU2020",#REF!)))))))) -> FALSE | N22: =IF($C$2=2,Venezuela!G22,IF($C$2=3,#REF!,IF($C$2=4,#REF!,IF($C$2=5,#REF!,IF($C$2=6,#REF!,IF($C$2=8,#REF!,IF($C$2=9,#REF!,IF($C$2="PERU2020",#REF!)))))))) -> FALSE | O22: =IF($C$2=2,Venezuela!H22,IF($C$2=3,#REF!,IF($C$2=4,#REF!,IF($C$2=5,#REF!,IF($C$2=6,#REF!,IF($C$2=8,#REF!,IF($C$2=9,#REF!,IF($C$2="PERU2020",#REF!)))))))) -> FALSE | Q22: 17.5 | R22: 17.5 | S22: 17.5 | T22: 17.5 | U22: 17.5
A23: 66 | B23: 66 | D23: 17.5 | E23: 17.5 | F23: 17.5 | G23: 17.5 | H23: 17.5 | K23: =IF($C$2=2,Venezuela!D23,IF($C$2=3,#REF!,IF($C$2=4,#REF!,IF($C$2=5,#REF!,IF($C$2=6,#REF!,IF($C$2=8,#REF!,IF($C$2=9,#REF!,IF($C$2="PERU2020",#REF!)))))))) -> FALSE | L23: =IF($C$2=2,Venezuela!E23,IF($C$2=3,#REF!,IF($C$2=4,#REF!,IF($C$2=5,#REF!,IF($C$2=6,#REF!,IF($C$2=8,#REF!,IF($C$2=9,#REF!,IF($C$2="PERU2020",#REF!)))))))) -> FALSE | M23: =IF($C$2=2,Venezuela!F23,IF($C$2=3,#REF!,IF($C$2=4,#REF!,IF($C$2=5,#REF!,IF($C$2=6,#REF!,IF($C$2=8,#REF!,IF($C$2=9,#REF!,IF($C$2="PERU2020",#REF!)))))))) -> FALSE | N23: =IF($C$2=2,Venezuela!G23,IF($C$2=3,#REF!,IF($C$2=4,#REF!,IF($C$2=5,#REF!,IF($C$2=6,#REF!,IF($C$2=8,#REF!,IF($C$2=9,#REF!,IF($C$2="PERU2020",#REF!)))))))) -> FALSE | O23: =IF($C$2=2,Venezuela!H23,IF($C$2=3,#REF!,IF($C$2=4,#REF!,IF($C$2=5,#REF!,IF($C$2=6,#REF!,IF($C$2=8,#REF!,IF($C$2=9,#REF!,IF($C$2="PERU2020",#REF!)))))))) -> FALSE | Q23: 17.5 | R23: 17.5 | S23: 17.5 | T23: 17.5 | U23: 17.5
A24: 67 | B24: 67 | D24: 17.5 | E24: 17.5 | F24: 17.5 | G24: 17.5 | H24: 17.5 | K24: =IF($C$2=2,Venezuela!D24,IF($C$2=3,#REF!,IF($C$2=4,#REF!,IF($C$2=5,#REF!,IF($C$2=6,#REF!,IF($C$2=8,#REF!,IF($C$2=9,#REF!,IF($C$2="PERU2020",#REF!)))))))) -> FALSE | L24: =IF($C$2=2,Venezuela!E24,IF($C$2=3,#REF!,IF($C$2=4,#REF!,IF($C$2=5,#REF!,IF($C$2=6,#REF!,IF($C$2=8,#REF!,IF($C$2=9,#REF!,IF($C$2="PERU2020",#REF!)))))))) -> FALSE | M24: =IF($C$2=2,Venezuela!F24,IF($C$2=3,#REF!,IF($C$2=4,#REF!,IF($C$2=5,#REF!,IF($C$2=6,#REF!,IF($C$2=8,#REF!,IF($C$2=9,#REF!,IF($C$2="PERU2020",#REF!)))))))) -> FALSE | N24: =IF($C$2=2,Venezuela!G24,IF($C$2=3,#REF!,IF($C$2=4,#REF!,IF($C$2=5,#REF!,IF($C$2=6,#REF!,IF($C$2=8,#REF!,IF($C$2=9,#REF!,IF($C$2="PERU2020",#REF!)))))))) -> FALSE | O24: =IF($C$2=2,Venezuela!H24,IF($C$2=3,#REF!,IF($C$2=4,#REF!,IF($C$2=5,#REF!,IF($C$2=6,#REF!,IF($C$2=8,#REF!,IF($C$2=9,#REF!,IF($C$2="PERU2020",#REF!)))))))) -> FALSE | Q24: 17.5 | R24: 17.5 | S24: 17.5 | T24: 17.5 | U24: 17.5
A25: 68 | B25: 68 | D25: 17.5 | E25: 17.5 | F25: 17.5 | G25: 17.5 | H25: 17.5 | K25: =IF($C$2=2,Venezuela!D25,IF($C$2=3,#REF!,IF($C$2=4,#REF!,IF($C$2=5,#REF!,IF($C$2=6,#REF!,IF($C$2=8,#REF!,IF($C$2=9,#REF!,IF($C$2="PERU2020",#REF!)))))))) -> FALSE | L25: =IF($C$2=2,Venezuela!E25,IF($C$2=3,#REF!,IF($C$2=4,#REF!,IF($C$2=5,#REF!,IF($C$2=6,#REF!,IF($C$2=8,#REF!,IF($C$2=9,#REF!,IF($C$2="PERU2020",#REF!)))))))) -> FALSE | M25: =IF($C$2=2,Venezuela!F25,IF($C$2=3,#REF!,IF($C$2=4,#REF!,IF($C$2=5,#REF!,IF($C$2=6,#REF!,IF($C$2=8,#REF!,IF($C$2=9,#REF!,IF($C$2="PERU2020",#REF!)))))))) -> FALSE | N25: =IF($C$2=2,Venezuela!G25,IF($C$2=3,#REF!,IF($C$2=4,#REF!,IF($C$2=5,#REF!,IF($C$2=6,#REF!,IF($C$2=8,#REF!,IF($C$2=9,#REF!,IF($C$2="PERU2020",#REF!)))))))) -> FALSE | O25: =IF($C$2=2,Venezuela!H25,IF($C$2=3,#REF!,IF($C$2=4,#REF!,IF($C$2=5,#REF!,IF($C$2=6,#REF!,IF($C$2=8,#REF!,IF($C$2=9,#REF!,IF($C$2="PERU2020",#REF!)))))))) -> FALSE | Q25: 17.5 | R25: 17.5 | S25: 17.5 | T25: 17.5 | U25: 17.5
A26: 69 | B26: 69 | D26: 17.5 | E26: 17.5 | F26: 17.5 | G26: 17.5 | H26: 17.5 | K26: =IF($C$2=2,Venezuela!D26,IF($C$2=3,#REF!,IF($C$2=4,#REF!,IF($C$2=5,#REF!,IF($C$2=6,#REF!,IF($C$2=8,#REF!,IF($C$2=9,#REF!,IF($C$2="PERU2020",#REF!)))))))) -> FALSE | L26: =IF($C$2=2,Venezuela!E26,IF($C$2=3,#REF!,IF($C$2=4,#REF!,IF($C$2=5,#REF!,IF($C$2=6,#REF!,IF($C$2=8,#REF!,IF($C$2=9,#REF!,IF($C$2="PERU2020",#REF!)))))))) -> FALSE | M26: =IF($C$2=2,Venezuela!F26,IF($C$2=3,#REF!,IF($C$2=4,#REF!,IF($C$2=5,#REF!,IF($C$2=6,#REF!,IF($C$2=8,#REF!,IF($C$2=9,#REF!,IF($C$2="PERU2020",#REF!)))))))) -> FALSE | N26: =IF($C$2=2,Venezuela!G26,IF($C$2=3,#REF!,IF($C$2=4,#REF!,IF($C$2=5,#REF!,IF($C$2=6,#REF!,IF($C$2=8,#REF!,IF($C$2=9,#REF!,IF($C$2="PERU2020",#REF!)))))))) -> FALSE | O26: =IF($C$2=2,Venezuela!H26,IF($C$2=3,#REF!,IF($C$2=4,#REF!,IF($C$2=5,#REF!,IF($C$2=6,#REF!,IF($C$2=8,#REF!,IF($C$2=9,#REF!,IF($C$2="PERU2020",#REF!)))))))) -> FALSE | Q26: 17.5 | R26: 17.5 | S26: 17.5 | T26: 17.5 | U26: 17.5
A27: 70 | B27: 70 | D27: 17.5 | E27: 17.5 | F27: 17.5 | G27: 17.5 | H27: 17.5 | K27: =IF($C$2=2,Venezuela!D27,IF($C$2=3,#REF!,IF($C$2=4,#REF!,IF($C$2=5,#REF!,IF($C$2=6,#REF!,IF($C$2=8,#REF!,IF($C$2=9,#REF!,IF($C$2="PERU2020",#REF!)))))))) -> FALSE | L27: =IF($C$2=2,Venezuela!E27,IF($C$2=3,#REF!,IF($C$2=4,#REF!,IF($C$2=5,#REF!,IF($C$2=6,#REF!,IF($C$2=8,#REF!,IF($C$2=9,#REF!,IF($C$2="PERU2020",#REF!)))))))) -> FALSE | M27: =IF($C$2=2,Venezuela!F27,IF($C$2=3,#REF!,IF($C$2=4,#REF!,IF($C$2=5,#REF!,IF($C$2=6,#REF!,IF($C$2=8,#REF!,IF($C$2=9,#REF!,IF($C$2="PERU2020",#REF!)))))))) -> FALSE | N27: =IF($C$2=2,Venezuela!G27,IF($C$2=3,#REF!,IF($C$2=4,#REF!,IF($C$2=5,#REF!,IF($C$2=6,#REF!,IF($C$2=8,#REF!,IF($C$2=9,#REF!,IF($C$2="PERU2020",#REF!)))))))) -> FALSE | O27: =IF($C$2=2,Venezuela!H27,IF($C$2=3,#REF!,IF($C$2=4,#REF!,IF($C$2=5,#REF!,IF($C$2=6,#REF!,IF($C$2=8,#REF!,IF($C$2=9,#REF!,IF($C$2="PERU2020",#REF!)))))))) -> FALSE | Q27: 17.5 | R27: 17.5 | S27: 17.5 | T27: 17.5 | U27: 17.5
A28: 71 | B28: 71 | D28: 17.5 | E28: 17.5 | F28: 17.5 | G28: 17.5 | H28: 17.5 | K28: =IF($C$2=2,Venezuela!D28,IF($C$2=3,#REF!,IF($C$2=4,#REF!,IF($C$2=5,#REF!,IF($C$2=6,#REF!,IF($C$2=8,#REF!,IF($C$2=9,#REF!,IF($C$2="PERU2020",#REF!)))))))) -> FALSE | L28: =IF($C$2=2,Venezuela!E28,IF($C$2=3,#REF!,IF($C$2=4,#REF!,IF($C$2=5,#REF!,IF($C$2=6,#REF!,IF($C$2=8,#REF!,IF($C$2=9,#REF!,IF($C$2="PERU2020",#REF!)))))))) -> FALSE | M28: =IF($C$2=2,Venezuela!F28,IF($C$2=3,#REF!,IF($C$2=4,#REF!,IF($C$2=5,#REF!,IF($C$2=6,#REF!,IF($C$2=8,#REF!,IF($C$2=9,#REF!,IF($C$2="PERU2020",#REF!)))))))) -> FALSE | N28: =IF($C$2=2,Venezuela!G28,IF($C$2=3,#REF!,IF($C$2=4,#REF!,IF($C$2=5,#REF!,IF($C$2=6,#REF!,IF($C$2=8,#REF!,IF($C$2=9,#REF!,IF($C$2="PERU2020",#REF!)))))))) -> FALSE | O28: =IF($C$2=2,Venezuela!H28,IF($C$2=3,#REF!,IF($C$2=4,#REF!,IF($C$2=5,#REF!,IF($C$2=6,#REF!,IF($C$2=8,#REF!,IF($C$2=9,#REF!,IF($C$2="PERU2020",#REF!)))))))) -> FALSE | Q28: 17.5 | R28: 17.5 | S28: 17.5 | T28: 17.5 | U28: 17.5
A29: 72 | B29: 72 | D29: 17.5 | E29: 17.5 | F29: 17.5 | G29: 17.5 | H29: 17.5 | K29: =IF($C$2=2,Venezuela!D29,IF($C$2=3,#REF!,IF($C$2=4,#REF!,IF($C$2=5,#REF!,IF($C$2=6,#REF!,IF($C$2=8,#REF!,IF($C$2=9,#REF!,IF($C$2="PERU2020",#REF!)))))))) -> FALSE | L29: =IF($C$2=2,Venezuela!E29,IF($C$2=3,#REF!,IF($C$2=4,#REF!,IF($C$2=5,#REF!,IF($C$2=6,#REF!,IF($C$2=8,#REF!,IF($C$2=9,#REF!,IF($C$2="PERU2020",#REF!)))))))) -> FALSE | M29: =IF($C$2=2,Venezuela!F29,IF($C$2=3,#REF!,IF($C$2=4,#REF!,IF($C$2=5,#REF!,IF($C$2=6,#REF!,IF($C$2=8,#REF!,IF($C$2=9,#REF!,IF($C$2="PERU2020",#REF!)))))))) -> FALSE | N29: =IF($C$2=2,Venezuela!G29,IF($C$2=3,#REF!,IF($C$2=4,#REF!,IF($C$2=5,#REF!,IF($C$2=6,#REF!,IF($C$2=8,#REF!,IF($C$2=9,#REF!,IF($C$2="PERU2020",#REF!)))))))) -> FALSE | O29: =IF($C$2=2,Venezuela!H29,IF($C$2=3,#REF!,IF($C$2=4,#REF!,IF($C$2=5,#REF!,IF($C$2=6,#REF!,IF($C$2=8,#REF!,IF($C$2=9,#REF!,IF($C$2="PERU2020",#REF!)))))))) -> FALSE | Q29: 17.5 | R29: 17.5 | S29: 17.5 | T29: 17.5 | U29: 17.5
A30: 73 | B30: 73 | D30: 17.5 | E30: 17.5 | F30: 17.5 | G30: 17.5 | H30: 17.5 | K30: =IF($C$2=2,Venezuela!D30,IF($C$2=3,#REF!,IF($C$2=4,#REF!,IF($C$2=5,#REF!,IF($C$2=6,#REF!,IF($C$2=8,#REF!,IF($C$2=9,#REF!,IF($C$2="PERU2020",#REF!)))))))) -> FALSE | L30: =IF($C$2=2,Venezuela!E30,IF($C$2=3,#REF!,IF($C$2=4,#REF!,IF($C$2=5,#REF!,IF($C$2=6,#REF!,IF($C$2=8,#REF!,IF($C$2=9,#REF!,IF($C$2="PERU2020",#REF!)))))))) -> FALSE | M30: =IF($C$2=2,Venezuela!F30,IF($C$2=3,#REF!,IF($C$2=4,#REF!,IF($C$2=5,#REF!,IF($C$2=6,#REF!,IF($C$2=8,#REF!,IF($C$2=9,#REF!,IF($C$2="PERU2020",#REF!)))))))) -> FALSE | N30: =IF($C$2=2,Venezuela!G30,IF($C$2=3,#REF!,IF($C$2=4,#REF!,IF($C$2=5,#REF!,IF($C$2=6,#REF!,IF($C$2=8,#REF!,IF($C$2=9,#REF!,IF($C$2="PERU2020",#REF!)))))))) -> FALSE | O30: =IF($C$2=2,Venezuela!H30,IF($C$2=3,#REF!,IF($C$2=4,#REF!,IF($C$2=5,#REF!,IF($C$2=6,#REF!,IF($C$2=8,#REF!,IF($C$2=9,#REF!,IF($C$2="PERU2020",#REF!)))))))) -> FALSE | Q30: 17.5 | R30: 17.5 | S30: 17.5 | T30: 17.5 | U30: 17.5
A31: 74 | B31: 74 | D31: 17.5 | E31: 17.5 | F31: 17.5 | G31: 17.5 | H31: 17.5 | K31: =IF($C$2=2,Venezuela!D31,IF($C$2=3,#REF!,IF($C$2=4,#REF!,IF($C$2=5,#REF!,IF($C$2=6,#REF!,IF($C$2=8,#REF!,IF($C$2=9,#REF!,IF($C$2="PERU2020",#REF!)))))))) -> FALSE | L31: =IF($C$2=2,Venezuela!E31,IF($C$2=3,#REF!,IF($C$2=4,#REF!,IF($C$2=5,#REF!,IF($C$2=6,#REF!,IF($C$2=8,#REF!,IF($C$2=9,#REF!,IF($C$2="PERU2020",#REF!)))))))) -> FALSE | M31: =IF($C$2=2,Venezuela!F31,IF($C$2=3,#REF!,IF($C$2=4,#REF!,IF($C$2=5,#REF!,IF($C$2=6,#REF!,IF($C$2=8,#REF!,IF($C$2=9,#REF!,IF($C$2="PERU2020",#REF!)))))))) -> FALSE | N31: =IF($C$2=2,Venezuela!G31,IF($C$2=3,#REF!,IF($C$2=4,#REF!,IF($C$2=5,#REF!,IF($C$2=6,#REF!,IF($C$2=8,#REF!,IF($C$2=9,#REF!,IF($C$2="PERU2020",#REF!)))))))) -> FALSE | O31: =IF($C$2=2,Venezuela!H31,IF($C$2=3,#REF!,IF($C$2=4,#REF!,IF($C$2=5,#REF!,IF($C$2=6,#REF!,IF($C$2=8,#REF!,IF($C$2=9,#REF!,IF($C$2="PERU2020",#REF!)))))))) -> FALSE | Q31: 17.5 | R31: 17.5 | S31: 17.5 | T31: 17.5 | U31: 17.5
A32: 75 | B32: 75+ | D32: 17.5 | E32: 17.5 | F32: 17.5 | G32: 17.5 | H32: 17.5 | K32: =IF($C$2=2,Venezuela!D32,IF($C$2=3,#REF!,IF($C$2=4,#REF!,IF($C$2=5,#REF!,IF($C$2=6,#REF!,IF($C$2=8,#REF!,IF($C$2=9,#REF!,IF($C$2="PERU2020",#REF!)))))))) -> FALSE | L32: =IF($C$2=2,Venezuela!E32,IF($C$2=3,#REF!,IF($C$2=4,#REF!,IF($C$2=5,#REF!,IF($C$2=6,#REF!,IF($C$2=8,#REF!,IF($C$2=9,#REF!,IF($C$2="PERU2020",#REF!)))))))) -> FALSE | M32: =IF($C$2=2,Venezuela!F32,IF($C$2=3,#REF!,IF($C$2=4,#REF!,IF($C$2=5,#REF!,IF($C$2=6,#REF!,IF($C$2=8,#REF!,IF($C$2=9,#REF!,IF($C$2="PERU2020",#REF!)))))))) -> FALSE | N32: =IF($C$2=2,Venezuela!G32,IF($C$2=3,#REF!,IF($C$2=4,#REF!,IF($C$2=5,#REF!,IF($C$2=6,#REF!,IF($C$2=8,#REF!,IF($C$2=9,#REF!,IF($C$2="PERU2020",#REF!)))))))) -> FALSE | O32: =IF($C$2=2,Venezuela!H32,IF($C$2=3,#REF!,IF($C$2=4,#REF!,IF($C$2=5,#REF!,IF($C$2=6,#REF!,IF($C$2=8,#REF!,IF($C$2=9,#REF!,IF($C$2="PERU2020",#REF!)))))))) -> FALSE | Q32: 17.5 | R32: 17.5 | S32: 17.5 | T32: 17.5 | U32: 17.5
A33: 1 | B33: 1 Child | D33: 0 | E33: 0 | F33: 0 | G33: 0 | H33: 0 | K33: =IF($C$2=2,Venezuela!D33,IF($C$2=3,#REF!,IF($C$2=4,#REF!,IF($C$2=5,#REF!,IF($C$2=6,#REF!,IF($C$2=8,#REF!,IF($C$2=9,#REF!,IF($C$2="PERU2020",#REF!)))))))) -> FALSE | L33: =IF($C$2=2,Venezuela!E33,IF($C$2=3,#REF!,IF($C$2=4,#REF!,IF($C$2=5,#REF!,IF($C$2=6,#REF!,IF($C$2=8,#REF!,IF($C$2=9,#REF!,IF($C$2="PERU2020",#REF!)))))))) -> FALSE | M33: =IF($C$2=2,Venezuela!F33,IF($C$2=3,#REF!,IF($C$2=4,#REF!,IF($C$2=5,#REF!,IF($C$2=6,#REF!,IF($C$2=8,#REF!,IF($C$2=9,#REF!,IF($C$2="PERU2020",#REF!)))))))) -> FALSE | N33: =IF($C$2=2,Venezuela!G33,IF($C$2=3,#REF!,IF($C$2=4,#REF!,IF($C$2=5,#REF!,IF($C$2=6,#REF!,IF($C$2=8,#REF!,IF($C$2=9,#REF!,IF($C$2="PERU2020",#REF!)))))))) -> FALSE | O33: =IF($C$2=2,Venezuela!H33,IF($C$2=3,#REF!,IF($C$2=4,#REF!,IF($C$2=5,#REF!,IF($C$2=6,#REF!,IF($C$2=8,#REF!,IF($C$2=9,#REF!,IF($C$2="PERU2020",#REF!)))))))) -> FALSE | Q33: =(K33)*$L$2 -> 0 | R33: =(L33)*$L$2 -> 0 | S33: 0 | T33: 0 | U33: 0
A34: 2 | B34: 2 Children | D34: 0 | E34: 0 | F34: 0 | G34: 0 | H34: 0 | K34: =IF($C$2=2,Venezuela!D34,IF($C$2=3,#REF!,IF($C$2=4,#REF!,IF($C$2=5,#REF!,IF($C$2=6,#REF!,IF($C$2=8,#REF!,IF($C$2=9,#REF!,IF($C$2="PERU2020",#REF!)))))))) -> FALSE | L34: =IF($C$2=2,Venezuela!E34,IF($C$2=3,#REF!,IF($C$2=4,#REF!,IF($C$2=5,#REF!,IF($C$2=6,#REF!,IF($C$2=8,#REF!,IF($C$2=9,#REF!,IF($C$2="PERU2020",#REF!)))))))) -> FALSE | M34: =IF($C$2=2,Venezuela!F34,IF($C$2=3,#REF!,IF($C$2=4,#REF!,IF($C$2=5,#REF!,IF($C$2=6,#REF!,IF($C$2=8,#REF!,IF($C$2=9,#REF!,IF($C$2="PERU2020",#REF!)))))))) -> FALSE | N34: =IF($C$2=2,Venezuela!G34,IF($C$2=3,#REF!,IF($C$2=4,#REF!,IF($C$2=5,#REF!,IF($C$2=6,#REF!,IF($C$2=8,#REF!,IF($C$2=9,#REF!,IF($C$2="PERU2020",#REF!)))))))) -> FALSE | O34: =IF($C$2=2,Venezuela!H34,IF($C$2=3,#REF!,IF($C$2=4,#REF!,IF($C$2=5,#REF!,IF($C$2=6,#REF!,IF($C$2=8,#REF!,IF($C$2=9,#REF!,IF($C$2="PERU2020",#REF!)))))))) -> FALSE | Q34: =(K34)*$L$2 -> 0 | R34: =(L34)*$L$2 -> 0 | S34: =(M34)*$L$2 -> 0 | T34: =(N34)*$L$2 -> 0 | U34: =(O34)*$L$2 -> 0
A35: 3 | B35: 3+ Children | D35: 0 | E35: 0 | F35: 0 | G35: 0 | H35: 0 | K35: =IF($C$2=2,Venezuela!D35,IF($C$2=3,#REF!,IF($C$2=4,#REF!,IF($C$2=5,#REF!,IF($C$2=6,#REF!,IF($C$2=8,#REF!,IF($C$2=9,#REF!,IF($C$2="PERU2020",#REF!)))))))) -> FALSE | L35: =IF($C$2=2,Venezuela!E35,IF($C$2=3,#REF!,IF($C$2=4,#REF!,IF($C$2=5,#REF!,IF($C$2=6,#REF!,IF($C$2=8,#REF!,IF($C$2=9,#REF!,IF($C$2="PERU2020",#REF!)))))))) -> FALSE | M35: =IF($C$2=2,Venezuela!F35,IF($C$2=3,#REF!,IF($C$2=4,#REF!,IF($C$2=5,#REF!,IF($C$2=6,#REF!,IF($C$2=8,#REF!,IF($C$2=9,#REF!,IF($C$2="PERU2020",#REF!)))))))) -> FALSE | N35: =IF($C$2=2,Venezuela!G35,IF($C$2=3,#REF!,IF($C$2=4,#REF!,IF($C$2=5,#REF!,IF($C$2=6,#REF!,IF($C$2=8,#REF!,IF($C$2=9,#REF!,IF($C$2="PERU2020",#REF!)))))))) -> FALSE | O35: =IF($C$2=2,Venezuela!H35,IF($C$2=3,#REF!,IF($C$2=4,#REF!,IF($C$2=5,#REF!,IF($C$2=6,#REF!,IF($C$2=8,#REF!,IF($C$2=9,#REF!,IF($C$2="PERU2020",#REF!)))))))) -> FALSE | Q35: 0 | R35: 0 | S35: 0 | T35: 0 | U35: 0
A36: 1 | B36: Rider Comp. Maternidad | D36: 0 | E36: 0 | F36: 225 | G36: 225 | H36: 225
A37: 1 | B37: Transplante de organos | D37: 0 | E37: 0 | F37: 0 | G37: 0 | H37: 0
A41: TARIFAS SEMESTRALES
A42: EDAD
D43: DW2 | E43: DW3 | F43: DW4 | G43: DW5 | H43: DW6
A44: 18 | B44: 18-24 | D44: =$G$2*D9 -> 9.275 | E44: 9.275 | F44: 9.275 | G44: 9.275 | H44: 9.275
A45: 25 | B45: 25-29 | D45: 9.275 | E45: 9.275 | F45: 9.275 | G45: 9.275 | H45: 9.275
A46: 30 | B46: 30-34 | D46: 9.275 | E46: 9.275 | F46: 9.275 | G46: 9.275 | H46: 9.275
A47: 35 | B47: 35-39 | D47: 9.275 | E47: 9.275 | F47: 9.275 | G47: 9.275 | H47: 9.275
A48: 40 | B48: 40-44 | D48: 9.275 | E48: 9.275 | F48: 9.275 | G48: 9.275 | H48: 9.275
A49: 45 | B49: 45-49 | D49: 9.275 | E49: 9.275 | F49: 9.275 | G49: 9.275 | H49: 9.275
A50: 50 | B50: 50-54 | D50: 9.275 | E50: 9.275 | F50: 9.275 | G50: 9.275 | H50: 9.275
A51: 55 | B51: 55-59 | D51: 9.275 | E51: 9.275 | F51: 9.275 | G51: 9.275 | H51: 9.275
A52: 60 | B52: 60 | D52: 9.275 | E52: 9.275 | F52: 9.275 | G52: 9.275 | H52: 9.275
A53: 61 | B53: 61 | D53: 9.275 | E53: 9.275 | F53: 9.275 | G53: 9.275 | H53: 9.275
A54: 62 | B54: 62 | D54: =$G$2*D19 -> 9.275 | E54: 9.275 | F54: 9.275 | G54: 9.275 | H54: 9.275
A55: 63 | B55: 63 | D55: 9.275 | E55: 9.275 | F55: 9.275 | G55: 9.275 | H55: 9.275
A56: 64 | B56: 64 | D56: 9.275 | E56: 9.275 | F56: 9.275 | G56: 9.275 | H56: 9.275
A57: 65 | B57: 65 | D57: 9.275 | E57: 9.275 | F57: 9.275 | G57: 9.275 | H57: 9.275
A58: 66 | B58: 66 | D58: 9.275 | E58: 9.275 | F58: 9.275 | G58: 9.275 | H58: 9.275
A59: 67 | B59: 67 | D59: 9.275 | E59: 9.275 | F59: 9.275 | G59: 9.275 | H59: 9.275
A60: 68 | B60: 68 | D60: 9.275 | E60: 9.275 | F60: 9.275 | G60: 9.275 | H60: 9.275
A61: 69 | B61: 69 | D61: 9.275 | E61: 9.275 | F61: 9.275 | G61: 9.275 | H61: 9.275
A62: 70 | B62: 70 | D62: 9.275 | E62: 9.275 | F62: 9.275 | G62: 9.275 | H62: 9.275
A63: 71 | B63: 71 | D63: 9.275 | E63: 9.275 | F63: 9.275 | G63: 9.275 | H63: 9.275
A64: 72 | B64: 72 | D64: =$G$2*D29 -> 9.275 | E64: 9.275 | F64: 9.275 | G64: 9.275 | H64: 9.275
A65: 73 | B65: 73 | D65: 9.275 | E65: 9.275 | F65: 9.275 | G65: 9.275 | H65: 9.275
A66: 74 | B66: 74 | D66: 9.275 | E66: 9.275 | F66: 9.275 | G66: 9.275 | H66: 9.275
A67: 75 | B67: 75+ | D67: 9.275 | E67: 9.275 | F67: 9.275 | G67: 9.275 | H67: 9.275
A68: 1 | B68: 1 Child | D68: 0 | E68: 0 | F68: 0 | G68: 0 | H68: 0
A69: 2 | B69: 2 Children | D69: 0 | E69: 0 | F69: 0 | G69: 0 | H69: 0
A70: 3 | B70: 3+ Children | D70: 0 | E70: 0 | F70: 0 | G70: 0 | H70: 0
A71: 1 | B71: Rider Comp. Maternidad | D71: =+D36*$G$2 -> 0 | E71: 0 | F71: 119.25 | G71: 119.25 | H71: 119.25
A72: 1 | B72: Transplante de organos | D72: 0 | E72: 0 | F72: 0 | G72: 0 | H72: 0
A78: DIAMOND (LATINAMERICA ONLY)
A79: TARIFAS ANUALES
A80: EDAD
C81: DL1 | D81: DL2 | E81: DL3 | F81: DL4 | G81: DL5 | H81: DL6
A82: 18 | B82: - 24
A83: 25 | B83: - 29
A84: 30 | B84: - 34
A85: 35 | B85: - 39
A86: 40 | B86: - 44
A87: 45 | B87: - 49
A88: 50 | B88: - 54
A89: 55 | B89: - 59
A90: 60
A91: 61
A92: 62
A93: 63
A94: 64
A95: 65
A96: 66
A97: 67
A98: 68
A99: 69
A100: 70
A101: 71
A102: 72
A103: 73
A104: 74
A105: 75 | B105: o más
A106: 1 | B106: Hijo
A107: 2 | B107: Hijos
A108: 3 | B108: Hijos o más
A109: 1 | B109: Rider Comp. Maternidad
A110: 1 | B110: Transplante de organos | C110: 0 | D110: 0 | E110: 0 | F110: 0 | G110: 0 | H110: 0
A112: TARIFAS SEMESTRALES
A113: EDAD
C114: DL1 | D114: DL2 | E114: DL3 | F114: DL4 | G114: DL5 | H114: DL6
A115: 18 | B115: - 24 | C115: =+C82*$G$2 -> 0 | D115: 0 | E115: 0 | F115: 0 | G115: 0 | H115: 0
A116: 25 | B116: - 29 | C116: 0 | D116: 0 | E116: 0 | F116: 0 | G116: 0 | H116: 0
A117: 30 | B117: - 34 | C117: 0 | D117: 0 | E117: 0 | F117: 0 | G117: 0 | H117: 0
A118: 35 | B118: - 39 | C118: 0 | D118: 0 | E118: 0 | F118: 0 | G118: 0 | H118: 0
A119: 40 | B119: - 44 | C119: 0 | D119: 0 | E119: 0 | F119: 0 | G119: 0 | H119: 0
A120: 45 | B120: - 49 | C120: 0 | D120: 0 | E120: 0 | F120: 0 | G120: 0 | H120: 0
A121: 50 | B121: - 54 | C121: 0 | D121: 0 | E121: 0 | F121: 0 | G121: 0 | H121: 0
A122: 55 | B122: - 59 | C122: 0 | D122: 0 | E122: 0 | F122: 0 | G122: 0 | H122: 0
A123: 60 | C123: 0 | D123: 0 | E123: 0 | F123: 0 | G123: 0 | H123: 0
A124: 61 | C124: 0 | D124: 0 | E124: 0 | F124: 0 | G124: 0 | H124: 0
A125: 62 | C125: =+C92*$G$2 -> 0 | D125: 0 | E125: 0 | F125: 0 | G125: 0 | H125: 0
A126: 63 | C126: 0 | D126: 0 | E126: 0 | F126: 0 | G126: 0 | H126: 0
A127: 64 | C127: 0 | D127: 0 | E127: 0 | F127: 0 | G127: 0 | H127: 0
A128: 65 | C128: 0 | D128: 0 | E128: 0 | F128: 0 | G128: 0 | H128: 0
A129: 66 | C129: 0 | D129: 0 | E129: 0 | F129: 0 | G129: 0 | H129: 0
A130: 67 | C130: 0 | D130: 0 | E130: 0 | F130: 0 | G130: 0 | H130: 0
A131: 68 | C131: 0 | D131: 0 | E131: 0 | F131: 0 | G131: 0 | H131: 0
A132: 69 | C132: 0 | D132: 0 | E132: 0 | F132: 0 | G132: 0 | H132: 0
A133: 70 | C133: 0 | D133: 0 | E133: 0 | F133: 0 | G133: 0 | H133: 0
A134: 71 | C134: 0 | D134: 0 | E134: 0 | F134: 0 | G134: 0 | H134: 0
A135: 72 | C135: =+C102*$G$2 -> 0 | D135: 0 | E135: 0 | F135: 0 | G135: 0 | H135: 0
A136: 73 | C136: 0 | D136: 0 | E136: 0 | F136: 0 | G136: 0 | H136: 0
A137: 74 | C137: 0 | D137: 0 | E137: 0 | F137: 0 | G137: 0 | H137: 0
A138: 75 | B138: o más | C138: 0 | D138: 0 | E138: 0 | F138: 0 | G138: 0 | H138: 0
A139: 1 | B139: Hijo | C139: 0 | D139: 0 | E139: 0 | F139: 0 | G139: 0 | H139: 0
A140: 2 | B140: Hijos | C140: 0 | D140: 0 | E140: 0 | F140: 0 | G140: 0 | H140: 0
A141: 3 | B141: Hijos o más | C141: 0 | D141: 0 | E141: 0 | F141: 0 | G141: 0 | H141: 0
A142: 1 | B142: Rider Comp. Maternidad | C142: 0 | D142: 0 | E142: 0 | F142: 0 | G142: 0 | H142: 0
A143: 1 | B143: Transplante de organos | C143: 0 | D143: 0 | E143: 0 | F143: 0 | G143: 0 | H143: 0
A148: BUPA PRIVILEGE CARE
A149: TARIFAS ANUALES
A150: EDAD
C151: CW1 | D151: CW2 | E151: CW3 | F151: CW4 | G151: CW5 | H151: CW6
A152: 18 | B152: 18-24 | D152: =Q152 -> 2010.4 | E152: =R152 -> 1433.85 | F152: 1021.75 | G152: 780.6 | K152: =Venezuela!D152 -> 3066 | L152: =Venezuela!E152 -> 2179 | M152: =Venezuela!F152 -> 1545 | N152: =Venezuela!G152 -> 1174 | O152: =Venezuela!H152 -> 0 | Q152: =(K152-50)*$M$2+50 -> 2010.4 | R152: =(L152-50)*$M$2+50 -> 1433.85 | S152: =(M152-50)*$M$2+50 -> 1021.75 | T152: =(N152-50)*$M$2+50 -> 780.6 | U152: =(O152-50)*$M$2+50 -> 17.5
A153: 25 | B153: 25-29 | D153: =Q153 -> 2225.55 | E153: =R153 -> 1586.6 | F153: =S153 -> 1129.65 | G153: =T153 -> 865.75 | K153: =Venezuela!D153 -> 3397 | L153: =Venezuela!E153 -> 2414 | M153: =Venezuela!F153 -> 1711 | N153: =Venezuela!G153 -> 1305 | O153: =Venezuela!H153 -> 0 | Q153: 2225.55 | R153: 1586.6 | S153: 1129.65 | T153: 865.75 | U153: 17.5
A154: 30 | B154: 30-34 | D154: 2493.35 | E154: 1777.05 | F154: 1364.3 | G154: 1045.15 | K154: =Venezuela!D154 -> 3809 | L154: =Venezuela!E154 -> 2707 | M154: =Venezuela!F154 -> 2072 | N154: =Venezuela!G154 -> 1581 | O154: =Venezuela!H154 -> 0 | Q154: 2493.35 | R154: 1777.05 | S154: 1364.3 | T154: 1045.15 | U154: 17.5
A155: 35 | B155: 35-39 | D155: 2788.45 | E155: 1987.65 | F155: 1525.5 | G155: 1169.3 | K155: =Venezuela!D155 -> 4263 | L155: =Venezuela!E155 -> 3031 | M155: =Venezuela!F155 -> 2320 | N155: =Venezuela!G155 -> 1772 | O155: =Venezuela!H155 -> 0 | Q155: 2788.45 | R155: 1987.65 | S155: 1525.5 | T155: 1169.3 | U155: 17.5
A156: 40 | B156: 40-44 | D156: 3099.15 | E156: 2208 | F156: 1679.55 | G156: 1286.3 | K156: =Venezuela!D156 -> 4741 | L156: =Venezuela!E156 -> 3370 | M156: =Venezuela!F156 -> 2557 | N156: =Venezuela!G156 -> 1952 | O156: =Venezuela!H156 -> 0 | Q156: 3099.15 | R156: 2208 | S156: 1679.55 | T156: 1286.3 | U156: 17.5
A157: 45 | B157: 45-49 | D157: 3463.15 | E157: 2468 | F157: 1874.55 | G157: 1436.45 | K157: =Venezuela!D157 -> 5301 | L157: =Venezuela!E157 -> 3770 | M157: =Venezuela!F157 -> 2857 | N157: =Venezuela!G157 -> 2183 | O157: =Venezuela!H157 -> 0 | Q157: 3463.15 | R157: 2468 | S157: 1874.55 | T157: 1436.45 | U157: 17.5
A158: 50 | B158: 50-54 | D158: 4540.2 | E158: 3232.4 | F158: 2668.85 | G158: 2044.2 | K158: =Venezuela!D158 -> 6958 | L158: =Venezuela!E158 -> 4946 | M158: =Venezuela!F158 -> 4079 | N158: =Venezuela!G158 -> 3118 | O158: =Venezuela!H158 -> 0 | Q158: 4540.2 | R158: 3232.4 | S158: 2668.85 | T158: 2044.2 | U158: 17.5
A159: 55 | B159: 55-59 | D159: 4830.1 | E159: 3438.45 | F159: 2837.85 | G159: 2175.5 | K159: =Venezuela!D159 -> 7404 | L159: =Venezuela!E159 -> 5263 | M159: =Venezuela!F159 -> 4339 | N159: =Venezuela!G159 -> 3320 | O159: =Venezuela!H159 -> 0 | Q159: 4830.1 | R159: 3438.45 | S159: 2837.85 | T159: 2175.5 | U159: 17.5
A160: 60 | B160: 60 | D160: 5492.45 | E160: 3909.7 | F160: 3372.15 | G160: 2710.45 | K160: =Venezuela!D160 -> 8423 | L160: =Venezuela!E160 -> 5988 | M160: =Venezuela!F160 -> 5161 | N160: =Venezuela!G160 -> 4143 | O160: =Venezuela!H160 -> 0 | Q160: 5492.45 | R160: 3909.7 | S160: 3372.15 | T160: 2710.45 | U160: 17.5
A161: 61 | B161: 61 | D161: 5898.7 | E161: 4198.3 | F161: 3621.75 | G161: 2910 | K161: =Venezuela!D161 -> 9048 | L161: =Venezuela!E161 -> 6432 | M161: =Venezuela!F161 -> 5545 | N161: =Venezuela!G161 -> 4450 | O161: =Venezuela!H161 -> 0 | Q161: 5898.7 | R161: 4198.3 | S161: 3621.75 | T161: 2910 | U161: 17.5
A162: 62 | B162: 62 | D162: 6458.35 | E162: 4596.75 | F162: 3963 | G162: 3186.25 | K162: =Venezuela!D162 -> 9909 | L162: =Venezuela!E162 -> 7045 | M162: =Venezuela!F162 -> 6070 | N162: =Venezuela!G162 -> 4875 | O162: =Venezuela!H162 -> 0 | Q162: 6458.35 | R162: 4596.75 | S162: 3963 | T162: 3186.25 | U162: 17.5
A163: 63 | B163: 63 | D163: 6863.3 | E163: 4884.7 | F163: 4211.95 | G163: 3387.1 | K163: =Venezuela!D163 -> 10532 | L163: =Venezuela!E163 -> 7488 | M163: =Venezuela!F163 -> 6453 | N163: =Venezuela!G163 -> 5184 | O163: =Venezuela!H163 -> 0 | Q163: 6863.3 | R163: 4884.7 | S163: 4211.95 | T163: 3387.1 | U163: 17.5
A164: 64 | B164: 64 | D164: 7422.95 | E164: 5281.85 | F164: 4555.8 | G164: 3662.7 | K164: =Venezuela!D164 -> 11393 | L164: =Venezuela!E164 -> 8099 | M164: =Venezuela!F164 -> 6982 | N164: =Venezuela!G164 -> 5608 | O164: =Venezuela!H164 -> 0 | Q164: 7422.95 | R164: 5281.85 | S164: 4555.8 | T164: 3662.7 | U164: 17.5
A165: 65 | B165: 65 | D165: 9380.75 | E165: 6673.5 | F165: 6066.4 | G165: 5157.05 | K165: =Venezuela!D165 -> 14405 | L165: =Venezuela!E165 -> 10240 | M165: =Venezuela!F165 -> 9306 | N165: =Venezuela!G165 -> 7907 | O165: =Venezuela!H165 -> 0 | Q165: 9380.75 | R165: 6673.5 | S165: 6066.4 | T165: 5157.05 | U165: 17.5
A166: 66 | B166: 66 | D166: 10897.85 | E166: 7751.85 | F166: 7047.9 | G166: 5989.05 | K166: =Venezuela!D166 -> 16739 | L166: =Venezuela!E166 -> 11899 | M166: =Venezuela!F166 -> 10816 | N166: =Venezuela!G166 -> 9187 | O166: =Venezuela!H166 -> 0 | Q166: 10897.85 | R166: 7751.85 | S166: 7047.9 | T166: 5989.05 | U166: 17.5
A167: 67 | B167: 67 | D167: 11900.8 | E167: 8464.25 | F167: 7695.95 | G167: 6537.65 | K167: =Venezuela!D167 -> 18282 | L167: =Venezuela!E167 -> 12995 | M167: =Venezuela!F167 -> 11813 | N167: =Venezuela!G167 -> 10031 | O167: =Venezuela!H167 -> 0 | Q167: 11900.8 | R167: 8464.25 | S167: 7695.95 | T167: 6537.65 | U167: 17.5
A168: 68 | B168: 68 | D168: 13176.75 | E168: 9372.3 | F168: 8522.1 | G168: 7237.05 | K168: =Venezuela!D168 -> 20245 | L168: =Venezuela!E168 -> 14392 | M168: =Venezuela!F168 -> 13084 | N168: =Venezuela!G168 -> 11107 | O168: =Venezuela!H168 -> 0 | Q168: 13176.75 | R168: 9372.3 | S168: 8522.1 | T168: 7237.05 | U168: 17.5
A169: 69 | B169: 69 | D169: 14496.25 | E169: 10310.25 | F169: 9372.3 | G169: 7962.45 | K169: =Venezuela!D169 -> 22275 | L169: =Venezuela!E169 -> 15835 | M169: =Venezuela!F169 -> 14392 | N169: =Venezuela!G169 -> 12223 | O169: =Venezuela!H169 -> 0 | Q169: 14496.25 | R169: 10310.25 | S169: 9372.3 | T169: 7962.45 | U169: 17.5
A170: 70 | B170: 70 | D170: 17055.95 | E170: 12128.95 | F170: 10918 | G170: 9360.6 | K170: =Venezuela!D170 -> 26213 | L170: =Venezuela!E170 -> 18633 | M170: =Venezuela!F170 -> 16770 | N170: =Venezuela!G170 -> 14374 | O170: =Venezuela!H170 -> 0 | Q170: 17055.95 | R170: 12128.95 | S170: 10918 | T170: 9360.6 | U170: 17.5
A171: 71 | B171: 71 | D171: 17728.05 | E171: 12607.35 | F171: 11344.4 | G171: 9726.55 | K171: =Venezuela!D171 -> 27247 | L171: =Venezuela!E171 -> 19369 | M171: =Venezuela!F171 -> 17426 | N171: =Venezuela!G171 -> 14937 | O171: =Venezuela!H171 -> 0 | Q171: 17728.05 | R171: 12607.35 | S171: 11344.4 | T171: 9726.55 | U171: 17.5
A172: 72 | B172: 72 | D172: 18227.9 | E172: 12962.25 | F172: 11666.8 | G172: 10002.8 | K172: =Venezuela!D172 -> 28016 | L172: =Venezuela!E172 -> 19915 | M172: =Venezuela!F172 -> 17922 | N172: =Venezuela!G172 -> 15362 | O172: =Venezuela!H172 -> 0 | Q172: 18227.9 | R172: 12962.25 | S172: 11666.8 | T172: 10002.8 | U172: 17.5
A173: 73 | B173: 73 | D173: 18898.7 | E173: 13439.35 | F173: 12093.2 | G173: 10371.35 | K173: =Venezuela!D173 -> 29048 | L173: =Venezuela!E173 -> 20649 | M173: =Venezuela!F173 -> 18578 | N173: =Venezuela!G173 -> 15929 | O173: =Venezuela!H173 -> 0 | Q173: 18898.7 | R173: 13439.35 | S173: 12093.2 | T173: 10371.35 | U173: 17.5
A174: 74 | B174: 74 | D174: 19228.25 | E174: 13673.35 | F174: 12307.7 | G174: 10553.35 | K174: =Venezuela!D174 -> 29555 | L174: =Venezuela!E174 -> 21009 | M174: =Venezuela!F174 -> 18908 | N174: =Venezuela!G174 -> 16209 | O174: =Venezuela!H174 -> 0 | Q174: 19228.25 | R174: 13673.35 | S174: 12307.7 | T174: 10553.35 | U174: 17.5
A175: 75 | B175: 75+ | D175: 20067.4 | E175: 14270.05 | F175: 12842 | G175: 11010.95 | K175: =Venezuela!D175 -> 30846 | L175: =Venezuela!E175 -> 21927 | M175: =Venezuela!F175 -> 19730 | N175: =Venezuela!G175 -> 16913 | O175: =Venezuela!H175 -> 0 | Q175: 20067.4 | R175: 14270.05 | S175: 12842 | T175: 11010.95 | U175: 17.5
A176: 1 | B176: 1 Child | D176: 810.55 | E176: 577.2 | F176: 486.2 | G176: 360.1 | K176: =Venezuela!D176 -> 1247 | L176: =Venezuela!E176 -> 888 | M176: =Venezuela!F176 -> 748 | N176: =Venezuela!G176 -> 554 | O176: =Venezuela!H176 -> 0 | Q176: =(K176)*$M$2 -> 810.55 | R176: 577.2 | S176: 486.2 | T176: 360.1 | U176: 0
A177: 2 | B177: 2 Children | D177: 1287 | E177: 915.2 | F177: 772.85 | G177: 570.7 | K177: =Venezuela!D177 -> 1980 | L177: =Venezuela!E177 -> 1408 | M177: =Venezuela!F177 -> 1189 | N177: =Venezuela!G177 -> 878 | O177: =Venezuela!H177 -> 0 | Q177: 1287 | R177: 915.2 | S177: 772.85 | T177: 570.7 | U177: 0
A178: 3 | B178: 3+ Children | D178: 1886.95 | E178: 1340.95 | F178: 1132.95 | G178: 836.55 | K178: =Venezuela!D178 -> 2903 | L178: =Venezuela!E178 -> 2063 | M178: =Venezuela!F178 -> 1743 | N178: =Venezuela!G178 -> 1287 | O178: =Venezuela!H178 -> 0 | Q178: 1886.95 | R178: 1340.95 | S178: 1132.95 | T178: 836.55 | U178: 0
A179: 1 | B179: Rider Comp. Maternidad | D179: =K179 -> 225 | E179: =L179 -> 225 | F179: 225 | G179: 225 | K179: 225 | L179: 225 | M179: 225 | N179: 225
A180: 1 | B180: Transplante de organos | D180: =K180 -> 0 | E180: =L180 -> 0 | F180: =M180 -> 0 | G180: =N180 -> 0 | K180: 0 | L180: 0 | M180: 0 | N180: 0 | O180: 0
D181: 0 | E181: 0 | F181: 0 | G181: 0
A184: TARIFAS SEMESTRALES
A185: EDAD
D186: CW2 | E186: CW3 | F186: CW4 | G186: CW5 | H186: CW6
A187: 18 | B187: 18-24 | D187: =$G$2*D152 -> 1065.512 | E187: 759.9405 | F187: 541.5275 | G187: 413.718 | H187: 0
A188: 25 | B188: 25-29 | D188: 1179.5415 | E188: 840.898 | F188: 598.7145 | G188: 458.8475 | H188: 0
A189: 30 | B189: 30-34 | D189: 1321.4755 | E189: 941.8365 | F189: 723.079 | G189: 553.9295 | H189: 0
A190: 35 | B190: 35-39 | D190: 1477.8785 | E190: 1053.4545 | F190: 808.515 | G190: 619.729 | H190: 0
A191: 40 | B191: 40-44 | D191: 1642.5495 | E191: 1170.24 | F191: 890.1615 | G191: 681.739 | H191: 0
A192: 45 | B192: 45-49 | D192: 1835.4695 | E192: 1308.04 | F192: 993.5115 | G192: 761.3185 | H192: 0
A193: 50 | B193: 50-54 | D193: 2406.306 | E193: 1713.172 | F193: 1414.4905 | G193: 1083.426 | H193: 0
A194: 55 | B194: 55-59 | D194: 2559.953 | E194: 1822.3785 | F194: 1504.0605 | G194: 1153.015 | H194: 0
A195: 60 | B195: 60 | D195: 2910.9985 | E195: 2072.141 | F195: 1787.2395 | G195: 1436.5385 | H195: 0
A196: 61 | B196: 61 | D196: 3126.311 | E196: 2225.099 | F196: 1919.5275 | G196: 1542.3 | H196: 0
A197: 62 | B197: 62 | D197: =$G$2*D162 -> 3422.9255 | E197: 2436.2775 | F197: 2100.39 | G197: 1688.7125 | H197: 0
A198: 63 | B198: 63 | D198: 3637.549 | E198: 2588.891 | F198: 2232.3335 | G198: 1795.163 | H198: 0
A199: 64 | B199: 64 | D199: 3934.1635 | E199: 2799.3805 | F199: 2414.574 | G199: 1941.231 | H199: 0
A200: 65 | B200: 65 | D200: 4971.7975 | E200: 3536.955 | F200: 3215.192 | G200: 2733.2365 | H200: 0
A201: 66 | B201: 66 | D201: 5775.8605 | E201: 4108.4805 | F201: 3735.387 | G201: 3174.1965 | H201: 0
A202: 67 | B202: 67 | D202: 6307.424 | E202: 4486.0525 | F202: 4078.8535 | G202: 3464.9545 | H202: 0
A203: 68 | B203: 68 | D203: 6983.6775 | E203: 4967.319 | F203: 4516.713 | G203: 3835.6365 | H203: 0
A204: 69 | B204: 69 | D204: 7683.0125 | E204: 5464.4325 | F204: 4967.319 | G204: 4220.0985 | H204: 0
A205: 70 | B205: 70 | D205: 9039.6535 | E205: 6428.3435 | F205: 5786.54 | G205: 4961.118 | H205: 0
A206: 71 | B206: 71 | D206: 9395.8665 | E206: 6681.8955 | F206: 6012.532 | G206: 5155.0715 | H206: 0
A207: 72 | B207: 72 | D207: =$G$2*D172 -> 9660.787 | E207: 6869.9925 | F207: 6183.404 | G207: 5301.484 | H207: 0
A208: 73 | B208: 73 | D208: 10016.311 | E208: 7122.8555 | F208: 6409.396 | G208: 5496.8155 | H208: 0
A209: 74 | B209: 74 | D209: 10190.9725 | E209: 7246.8755 | F209: 6523.081 | G209: 5593.2755 | H209: 0
A210: 75 | B210: 75+ | D210: 10635.722 | E210: 7563.1265 | F210: 6806.26 | G210: 5835.8035 | H210: 0
A211: 1 | B211: 1 Child | D211: 429.5915 | E211: 305.916 | F211: 257.686 | G211: 190.853 | H211: 0
A212: 2 | B212: 2 Children | D212: 682.11 | E212: 485.056 | F212: 409.6105 | G212: 302.471 | H212: 0
A213: 3 | B213: 3+ Children | D213: 1000.0835 | E213: 710.7035 | F213: 600.4635 | G213: 443.3715 | H213: 0
A214: 1 | B214: Rider Comp. Maternidad | D214: =+D179*$G$2 -> 119.25 | E214: 119.25 | F214: 119.25 | G214: 119.25 | H214: 0
A215: 1 | B215: Transplante de organos | D215: 0 | E215: 0 | F215: 0 | G215: 0 | H215: 0
A220: COMPLETE (LATINAMERICA ONLY)
A221: TARIFAS ANUALES
... 336 more rows

Sheet Venezuela (hidden)
K1: D1 | L1: D2 | M1: D3 | N1: D4 | O1: D5 | P1: D6
B2: REGIÓN | C2: ='INGRESO DE DATOS'!W14 -> VENEZUELA | E2: FACTOR SEMESTRAL : | G2: 0.53 | I2: NEW BUSINESS DISCUOUNTS | K2: ='INGRESO DE DATOS'!O42 -> 0.65 | L2: ='INGRESO DE DATOS'!P42 -> 0.65 | M2: ='INGRESO DE DATOS'!Q42 -> 0.65 | N2: ='INGRESO DE DATOS'!R42 -> 0.65 | O2: ='INGRESO DE DATOS'!S42 -> 0.65 | P2: ='INGRESO DE DATOS'!T42 -> 0.65
A5: BUPA EXCLUSIVE CARE
A6: TARIFAS ANUALES
A7: EDAD
C8: DW1 | D8: DW2 | E8: DW3 | F8: DW4 | G8: DW5 | H8: DW6
A9: 18 | B9: 18-24 | D9: 19965 | E9: 13185 | F9: 8718 | G9: 6125 | H9: 4814
A10: 25 | B10: 25-29 | D10: 20940 | E10: 14572 | F10: 9655 | G10: 6792 | H10: 5334
A11: 30 | B11: 30-34 | D11: 21790 | E11: 15636 | F11: 10819 | G11: 8141 | H11: 6415
A12: 35 | B12: 35-39 | D12: 24398 | E12: 17502 | F12: 12135 | G12: 9131 | H12: 7187
A13: 40 | B13: 40-44 | D13: 28288 | E13: 19152 | F13: 13465 | G13: 10046 | H13: 7902
A14: 45 | B14: 45-49 | D14: 31632 | E14: 21417 | F14: 15053 | G14: 11232 | H14: 8843
A15: 50 | B15: 50-54 | D15: 40486 | E15: 28113 | F15: 19652 | G15: 15868 | H15: 12505
A16: 55 | B16: 55-59 | D16: 43082 | E16: 29915 | F16: 20911 | G16: 16891 | H16: 13315
A17: 60 | B17: 60 | D17: 46936 | E17: 32645 | F17: 24069 | G17: 20355 | H17: 16547
A18: 61 | B18: 61 | D18: 50427 | E18: 35072 | F18: 25850 | G18: 21883 | H18: 17783
A19: 62 | B19: 62 | D19: 55211 | E19: 38418 | F19: 28311 | G19: 23950 | H19: 19476
A20: 63 | B20: 63 | D20: 58707 | E20: 40844 | F20: 30099 | G20: 25476 | H20: 20708
A21: 64 | B21: 64 | D21: 63513 | E21: 44201 | F21: 32571 | G21: 27561 | H21: 22416
A22: 65 | B22: 65 | D22: 83034 | E22: 57657 | F22: 41193 | G22: 36767 | H22: 31620
A23: 66 | B23: 66 | D23: 96467 | E23: 67010 | F23: 47873 | G23: 42741 | H23: 36743
A24: 67 | B24: 67 | D24: 105370 | E24: 73186 | F24: 52294 | G24: 46671 | H24: 40139
A25: 68 | B25: 68 | D25: 116679 | E25: 81039 | F25: 57900 | G25: 51695 | H25: 44452
A26: 69 | B26: 69 | D26: 128381 | E26: 89160 | F26: 63712 | G26: 56874 | H26: 48918
A27: 70 | B27: 70 | D27: 158016 | E27: 108580 | F27: 75013 | G27: 66291 | H27: 57541
A28: 71 | B28: 71 | D28: 164217 | E28: 112839 | F28: 77957 | G28: 68894 | H28: 59805
A29: 72 | B29: 72 | D29: 168872 | E29: 116034 | F29: 80156 | G29: 70838 | H29: 61500
A30: 73 | B30: 73 | D30: 175073 | E30: 120305 | F30: 83099 | G30: 73456 | H30: 63765
A31: 74 | B31: 74 | D31: 178175 | E31: 122426 | F31: 84585 | G31: 74752 | H31: 64887
A32: 75 | B32: 75+ | D32: 185937 | E32: 127756 | F32: 88256 | G32: 78010 | H32: 67715
A33: 1 | B33: 1 Child | D33: 6945 | E33: 5115 | F33: 3907 | G33: 3266 | H33: 2546
A34: 2 | B34: 2 Children | D34: 11045 | E34: 8147 | F34: 6216 | G34: 5185 | H34: 4031
A35: 3 | B35: 3+ Children | D35: 16193 | E35: 11945 | F35: 9101 | G35: 7597 | H35: 5911
A36: 1 | B36: Rider Comp. Maternidad | D36: 0 | E36: 0 | F36: 225 | G36: 225 | H36: 225
A37: 1 | B37: Transplante de organos | D37: 0 | E37: 0 | F37: 0 | G37: 0 | H37: 0
A41: TARIFAS SEMESTRALES
A42: EDAD
D43: DW2 | E43: DW3 | F43: DW4 | G43: DW5 | H43: DW6
A44: 18 | B44: 18-24 | D44: =$G$2*D9 -> 10581.45 | E44: 6988.05 | F44: 4620.54 | G44: 3246.25 | H44: 2551.42
A45: 25 | B45: 25-29 | D45: 11098.2 | E45: 7723.16 | F45: 5117.15 | G45: 3599.76 | H45: 2827.02
A46: 30 | B46: 30-34 | D46: 11548.7 | E46: 8287.08 | F46: 5734.07 | G46: 4314.73 | H46: 3399.95
A47: 35 | B47: 35-39 | D47: 12930.94 | E47: 9276.06 | F47: 6431.55 | G47: 4839.43 | H47: 3809.11
A48: 40 | B48: 40-44 | D48: 14992.64 | E48: 10150.56 | F48: 7136.45 | G48: 5324.38 | H48: 4188.06
A49: 45 | B49: 45-49 | D49: 16764.96 | E49: 11351.01 | F49: 7978.09 | G49: 5952.96 | H49: 4686.79
A50: 50 | B50: 50-54 | D50: 21457.58 | E50: 14899.89 | F50: 10415.56 | G50: 8410.04 | H50: 6627.65
A51: 55 | B51: 55-59 | D51: 22833.46 | E51: 15854.95 | F51: 11082.83 | G51: 8952.23 | H51: 7056.95
A52: 60 | B52: 60 | D52: 24876.08 | E52: 17301.85 | F52: 12756.57 | G52: 10788.15 | H52: 8769.91
A53: 61 | B53: 61 | D53: 26726.31 | E53: 18588.16 | F53: 13700.5 | G53: 11597.99 | H53: 9424.99
A54: 62 | B54: 62 | D54: =$G$2*D19 -> 29261.83 | E54: 20361.54 | F54: 15004.83 | G54: 12693.5 | H54: 10322.28
A55: 63 | B55: 63 | D55: 31114.71 | E55: 21647.32 | F55: 15952.47 | G55: 13502.28 | H55: 10975.24
A56: 64 | B56: 64 | D56: 33661.89 | E56: 23426.53 | F56: 17262.63 | G56: 14607.33 | H56: 11880.48
A57: 65 | B57: 65 | D57: 44008.02 | E57: 30558.21 | F57: 21832.29 | G57: 19486.51 | H57: 16758.6
A58: 66 | B58: 66 | D58: 51127.51 | E58: 35515.3 | F58: 25372.69 | G58: 22652.73 | H58: 19473.79
A59: 67 | B59: 67 | D59: 55846.1 | E59: 38788.58 | F59: 27715.82 | G59: 24735.63 | H59: 21273.67
A60: 68 | B60: 68 | D60: 61839.87 | E60: 42950.67 | F60: 30687 | G60: 27398.35 | H60: 23559.56
A61: 69 | B61: 69 | D61: 68041.93 | E61: 47254.8 | F61: 33767.36 | G61: 30143.22 | H61: 25926.54
A62: 70 | B62: 70 | D62: 83748.48 | E62: 57547.4 | F62: 39756.89 | G62: 35134.23 | H62: 30496.73
A63: 71 | B63: 71 | D63: 87035.01 | E63: 59804.67 | F63: 41317.21 | G63: 36513.82 | H63: 31696.65
A64: 72 | B64: 72 | D64: =$G$2*D29 -> 89502.16 | E64: 61498.02 | F64: 42482.68 | G64: 37544.14 | H64: 32595
A65: 73 | B65: 73 | D65: 92788.69 | E65: 63761.65 | F65: 44042.47 | G65: 38931.68 | H65: 33795.45
A66: 74 | B66: 74 | D66: 94432.75 | E66: 64885.78 | F66: 44830.05 | G66: 39618.56 | H66: 34390.11
A67: 75 | B67: 75+ | D67: 98546.61 | E67: 67710.68 | F67: 46775.68 | G67: 41345.3 | H67: 35888.95
A68: 1 | B68: 1 Child | D68: 3680.85 | E68: 2710.95 | F68: 2070.71 | G68: 1730.98 | H68: 1349.38
A69: 2 | B69: 2 Children | D69: 5853.85 | E69: 4317.91 | F69: 3294.48 | G69: 2748.05 | H69: 2136.43
A70: 3 | B70: 3+ Children | D70: 8582.29 | E70: 6330.85 | F70: 4823.53 | G70: 4026.41 | H70: 3132.83
A71: 1 | B71: Rider Comp. Maternidad | D71: =+D36*$G$2 -> 0 | E71: 0 | F71: 119.25 | G71: 119.25 | H71: 119.25
A72: 1 | B72: Transplante de organos | D72: 0 | E72: 0 | F72: 0 | G72: 0 | H72: 0
A78: DIAMOND (LATINAMERICA ONLY)
A79: TARIFAS ANUALES
A80: EDAD
C81: DL1 | D81: DL2 | E81: DL3 | F81: DL4 | G81: DL5 | H81: DL6
A82: 18 | B82: - 24
A83: 25 | B83: - 29
A84: 30 | B84: - 34
A85: 35 | B85: - 39
A86: 40 | B86: - 44
A87: 45 | B87: - 49
A88: 50 | B88: - 54
A89: 55 | B89: - 59
A90: 60
A91: 61
A92: 62
A93: 63
A94: 64
A95: 65
A96: 66
A97: 67
A98: 68
A99: 69
A100: 70
A101: 71
A102: 72
A103: 73
A104: 74
A105: 75 | B105: o más
A106: 1 | B106: Hijo
A107: 2 | B107: Hijos
A108: 3 | B108: Hijos o más
A109: 1 | B109: Rider Comp. Maternidad
A110: 1 | B110: Transplante de organos | C110: 0 | D110: 0 | E110: 0 | F110: 0 | G110: 0 | H110: 0
A112: TARIFAS SEMESTRALES
A113: EDAD
C114: DL1 | D114: DL2 | E114: DL3 | F114: DL4 | G114: DL5 | H114: DL6
A115: 18 | B115: - 24 | C115: =+C82*$G$2 -> 0 | D115: 0 | E115: 0 | F115: 0 | G115: 0 | H115: 0
A116: 25 | B116: - 29 | C116: 0 | D116: 0 | E116: 0 | F116: 0 | G116: 0 | H116: 0
A117: 30 | B117: - 34 | C117: 0 | D117: 0 | E117: 0 | F117: 0 | G117: 0 | H117: 0
A118: 35 | B118: - 39 | C118: 0 | D118: 0 | E118: 0 | F118: 0 | G118: 0 | H118: 0
A119: 40 | B119: - 44 | C119: 0 | D119: 0 | E119: 0 | F119: 0 | G119: 0 | H119: 0
A120: 45 | B120: - 49 | C120: 0 | D120: 0 | E120: 0 | F120: 0 | G120: 0 | H120: 0
A121: 50 | B121: - 54 | C121: 0 | D121: 0 | E121: 0 | F121: 0 | G121: 0 | H121: 0
A122: 55 | B122: - 59 | C122: 0 | D122: 0 | E122: 0 | F122: 0 | G122: 0 | H122: 0
A123: 60 | C123: 0 | D123: 0 | E123: 0 | F123: 0 | G123: 0 | H123: 0
A124: 61 | C124: 0 | D124: 0 | E124: 0 | F124: 0 | G124: 0 | H124: 0
A125: 62 | C125: =+C92*$G$2 -> 0 | D125: 0 | E125: 0 | F125: 0 | G125: 0 | H125: 0
A126: 63 | C126: 0 | D126: 0 | E126: 0 | F126: 0 | G126: 0 | H126: 0
A127: 64 | C127: 0 | D127: 0 | E127: 0 | F127: 0 | G127: 0 | H127: 0
A128: 65 | C128: 0 | D128: 0 | E128: 0 | F128: 0 | G128: 0 | H128: 0
A129: 66 | C129: 0 | D129: 0 | E129: 0 | F129: 0 | G129: 0 | H129: 0
A130: 67 | C130: 0 | D130: 0 | E130: 0 | F130: 0 | G130: 0 | H130: 0
A131: 68 | C131: 0 | D131: 0 | E131: 0 | F131: 0 | G131: 0 | H131: 0
A132: 69 | C132: 0 | D132: 0 | E132: 0 | F132: 0 | G132: 0 | H132: 0
A133: 70 | C133: 0 | D133: 0 | E133: 0 | F133: 0 | G133: 0 | H133: 0
A134: 71 | C134: 0 | D134: 0 | E134: 0 | F134: 0 | G134: 0 | H134: 0
A135: 72 | C135: =+C102*$G$2 -> 0 | D135: 0 | E135: 0 | F135: 0 | G135: 0 | H135: 0
A136: 73 | C136: 0 | D136: 0 | E136: 0 | F136: 0 | G136: 0 | H136: 0
A137: 74 | C137: 0 | D137: 0 | E137: 0 | F137: 0 | G137: 0 | H137: 0
A138: 75 | B138: o más | C138: 0 | D138: 0 | E138: 0 | F138: 0 | G138: 0 | H138: 0
A139: 1 | B139: Hijo | C139: 0 | D139: 0 | E139: 0 | F139: 0 | G139: 0 | H139: 0
A140: 2 | B140: Hijos | C140: 0 | D140: 0 | E140: 0 | F140: 0 | G140: 0 | H140: 0
A141: 3 | B141: Hijos o más | C141: 0 | D141: 0 | E141: 0 | F141: 0 | G141: 0 | H141: 0
A142: 1 | B142: Rider Comp. Maternidad | C142: 0 | D142: 0 | E142: 0 | F142: 0 | G142: 0 | H142: 0
A143: 1 | B143: Transplante de organos | C143: 0 | D143: 0 | E143: 0 | F143: 0 | G143: 0 | H143: 0
A148: BUPA PRIVILEGE CARE INTEERNATIONAL
A149: TARIFAS ANUALES
A150: EDAD
C151: CW1 | D151: CW2 | E151: CW3 | F151: CW4 | G151: CW5 | H151: CW6
A152: 18 | B152: 18-24 | D152: 3066 | E152: 2179 | F152: 1545 | G152: 1174
A153: 25 | B153: 25-29 | D153: 3397 | E153: 2414 | F153: 1711 | G153: 1305
A154: 30 | B154: 30-34 | D154: 3809 | E154: 2707 | F154: 2072 | G154: 1581
A155: 35 | B155: 35-39 | D155: 4263 | E155: 3031 | F155: 2320 | G155: 1772
A156: 40 | B156: 40-44 | D156: 4741 | E156: 3370 | F156: 2557 | G156: 1952
A157: 45 | B157: 45-49 | D157: 5301 | E157: 3770 | F157: 2857 | G157: 2183
A158: 50 | B158: 50-54 | D158: 6958 | E158: 4946 | F158: 4079 | G158: 3118
A159: 55 | B159: 55-59 | D159: 7404 | E159: 5263 | F159: 4339 | G159: 3320
A160: 60 | B160: 60 | D160: 8423 | E160: 5988 | F160: 5161 | G160: 4143
A161: 61 | B161: 61 | D161: 9048 | E161: 6432 | F161: 5545 | G161: 4450
A162: 62 | B162: 62 | D162: 9909 | E162: 7045 | F162: 6070 | G162: 4875
A163: 63 | B163: 63 | D163: 10532 | E163: 7488 | F163: 6453 | G163: 5184
A164: 64 | B164: 64 | D164: 11393 | E164: 8099 | F164: 6982 | G164: 5608
A165: 65 | B165: 65 | D165: 14405 | E165: 10240 | F165: 9306 | G165: 7907
A166: 66 | B166: 66 | D166: 16739 | E166: 11899 | F166: 10816 | G166: 9187
A167: 67 | B167: 67 | D167: 18282 | E167: 12995 | F167: 11813 | G167: 10031
A168: 68 | B168: 68 | D168: 20245 | E168: 14392 | F168: 13084 | G168: 11107
A169: 69 | B169: 69 | D169: 22275 | E169: 15835 | F169: 14392 | G169: 12223
A170: 70 | B170: 70 | D170: 26213 | E170: 18633 | F170: 16770 | G170: 14374
A171: 71 | B171: 71 | D171: 27247 | E171: 19369 | F171: 17426 | G171: 14937
A172: 72 | B172: 72 | D172: 28016 | E172: 19915 | F172: 17922 | G172: 15362
A173: 73 | B173: 73 | D173: 29048 | E173: 20649 | F173: 18578 | G173: 15929
A174: 74 | B174: 74 | D174: 29555 | E174: 21009 | F174: 18908 | G174: 16209
A175: 75 | B175: 75+ | D175: 30846 | E175: 21927 | F175: 19730 | G175: 16913
A176: 1 | B176: 1 Child | D176: 1247 | E176: 888 | F176: 748 | G176: 554
A177: 2 | B177: 2 Children | D177: 1980 | E177: 1408 | F177: 1189 | G177: 878
A178: 3 | B178: 3+ Children | D178: 2903 | E178: 2063 | F178: 1743 | G178: 1287
A179: 1 | B179: Rider Comp. Maternidad | D179: 0 | E179: 0 | F179: 225 | G179: 225
A180: 1 | B180: Transplante de organos | D180: 0 | E180: 0 | F180: 0 | G180: 0
A184: TARIFAS SEMESTRALES
A185: EDAD
D186: CW2 | E186: CW3 | F186: CW4 | G186: CW5 | H186: CW6
A187: 18 | B187: 18-24 | D187: =$G$2*D152 -> 1624.98 | E187: 1154.87 | F187: 818.85 | G187: 622.22 | H187: 0
A188: 25 | B188: 25-29 | D188: 1800.41 | E188: 1279.42 | F188: 906.83 | G188: 691.65 | H188: 0
A189: 30 | B189: 30-34 | D189: 2018.77 | E189: 1434.71 | F189: 1098.16 | G189: 837.93 | H189: 0
A190: 35 | B190: 35-39 | D190: 2259.39 | E190: 1606.43 | F190: 1229.6 | G190: 939.16 | H190: 0
A191: 40 | B191: 40-44 | D191: 2512.73 | E191: 1786.1 | F191: 1355.21 | G191: 1034.56 | H191: 0
A192: 45 | B192: 45-49 | D192: 2809.53 | E192: 1998.1 | F192: 1514.21 | G192: 1156.99 | H192: 0
A193: 50 | B193: 50-54 | D193: 3687.74 | E193: 2621.38 | F193: 2161.87 | G193: 1652.54 | H193: 0
A194: 55 | B194: 55-59 | D194: 3924.12 | E194: 2789.39 | F194: 2299.67 | G194: 1759.6 | H194: 0
A195: 60 | B195: 60 | D195: 4464.19 | E195: 3173.64 | F195: 2735.33 | G195: 2195.79 | H195: 0
A196: 61 | B196: 61 | D196: 4795.44 | E196: 3408.96 | F196: 2938.85 | G196: 2358.5 | H196: 0
A197: 62 | B197: 62 | D197: =$G$2*D162 -> 5251.77 | E197: 3733.85 | F197: 3217.1 | G197: 2583.75 | H197: 0
A198: 63 | B198: 63 | D198: 5581.96 | E198: 3968.64 | F198: 3420.09 | G198: 2747.52 | H198: 0
A199: 64 | B199: 64 | D199: 6038.29 | E199: 4292.47 | F199: 3700.46 | G199: 2972.24 | H199: 0
A200: 65 | B200: 65 | D200: 7634.65 | E200: 5427.2 | F200: 4932.18 | G200: 4190.71 | H200: 0
A201: 66 | B201: 66 | D201: 8871.67 | E201: 6306.47 | F201: 5732.48 | G201: 4869.11 | H201: 0
A202: 67 | B202: 67 | D202: 9689.46 | E202: 6887.35 | F202: 6260.89 | G202: 5316.43 | H202: 0
A203: 68 | B203: 68 | D203: 10729.85 | E203: 7627.76 | F203: 6934.52 | G203: 5886.71 | H203: 0
A204: 69 | B204: 69 | D204: 11805.75 | E204: 8392.55 | F204: 7627.76 | G204: 6478.19 | H204: 0
A205: 70 | B205: 70 | D205: 13892.89 | E205: 9875.49 | F205: 8888.1 | G205: 7618.22 | H205: 0
A206: 71 | B206: 71 | D206: 14440.91 | E206: 10265.57 | F206: 9235.78 | G206: 7916.61 | H206: 0
A207: 72 | B207: 72 | D207: =$G$2*D172 -> 14848.48 | E207: 10554.95 | F207: 9498.66 | G207: 8141.86 | H207: 0
A208: 73 | B208: 73 | D208: 15395.44 | E208: 10943.97 | F208: 9846.34 | G208: 8442.37 | H208: 0
A209: 74 | B209: 74 | D209: 15664.15 | E209: 11134.77 | F209: 10021.24 | G209: 8590.77 | H209: 0
A210: 75 | B210: 75+ | D210: 16348.38 | E210: 11621.31 | F210: 10456.9 | G210: 8963.89 | H210: 0
A211: 1 | B211: 1 Child | D211: 660.91 | E211: 470.64 | F211: 396.44 | G211: 293.62 | H211: 0
A212: 2 | B212: 2 Children | D212: 1049.4 | E212: 746.24 | F212: 630.17 | G212: 465.34 | H212: 0
A213: 3 | B213: 3+ Children | D213: 1538.59 | E213: 1093.39 | F213: 923.79 | G213: 682.11 | H213: 0
A214: 1 | B214: Rider Comp. Maternidad | D214: =+D179*$G$2 -> 0 | E214: 0 | F214: 119.25 | G214: 119.25 | H214: 0
A215: 1 | B215: Transplante de organos | D215: 0 | E215: 0 | F215: 0 | G215: 0 | H215: 0
A220: COMPLETE (LATINAMERICA ONLY)
A221: TARIFAS ANUALES
A222: EDAD
... 335 more rows
